Cogmind - Beta 9.6 @@@ ROGUE MODE // 2020.08.24 @ 22:20:17 Player: 0x1RIF Result: Establishing 0b11! Performance ------------- Evolutions (9) 4500 Regions Visited (32) 6400 Robots Destroyed (448) 2240 Value Destroyed (24923) 24923 Prototype IDs (116) 2320 Alien Tech Used (20) 4000 Bonus (53283) 53283 TOTAL SCORE: 97666 Bonus ------- High Alert Combat Kills 4822 Follower Combat Kills 1792 Entered Garrisons 1600 Used RIF Installer 4000 Aligned with FarCom 300 Destroyed MAIN.C Guards 500 Met MAIN.C 5000 Destroyed MAIN.C Shell 5000 Destroyed MAIN.C 10000 Met Architect 300 Destroyed A8 300 Destroyed A6 400 Destroyed A5 500 Destroyed A4 700 Destroyed A3 800 Destroyed A2 1000 Destroyed Architect 15000 Win 3000 Friendly Fire -1731 Cogmind --------- Core Integrity 642/1600 Matter 201/300 Energy 591/600 System Corruption 5% Temperature Cool (1) Movement Walking (134) Ox1 Location 0b11 Command Parts ------- > --- POWER (2) -------- Reinforced Quantum Reactor Improved Quantum Reactor > --- PROPULSION (4) --- Enhanced Flexi-carbon Leg Experimental Biometal Leg Experimental Biometal Leg Experimental Biometal Leg > --- UTILITY (15) ----- High-capacity Storage Unit High-capacity Storage Unit Experimental Targeting Computer Experimental Targeting Computer Experimental Target Analyzer Experimental Core Analyzer Advanced Particle Charger Experimental Weapon Cycler Experimental Phase Shifter Centrium Linked Plating Centrium Linked Plating Centrium Linked Plating Centrium Linked Plating Centrium Linked Plating AEGIS Remote Shield > --- WEAPON (5) ------- Sigix Quantum Sheargun Modified Quantum Sheargun Modified Quantum Sheargun Modified Quantum Sheargun Modified Quantum Sheargun > --- INVENTORY (22) --- Enhanced Flexi-carbon Leg Centrium Leg Experimental Energy Well (1000) Experimental Energy Well (1000) Advanced Particle Charger Quantum Capacitor Experimental Weapon Shielding Experimental Powered Armor AEGIS Remote Shield Enhanced Nova Cannon Cooled Nova Cannon Multirail Hypervelocity Multirail Hypervelocity Linear Accelerator Graviton Cannon Hellfire Missile Launcher Sigix Broadsword Peak State ------------ > --- POWER ------------ Improved Quantum Reactor Zero-point Reactor > --- PROPULSION ------- Centrium Leg Experimental Biometal Leg Experimental Biometal Leg Experimental Biometal Leg > --- UTILITY ---------- High-capacity Storage Unit High-capacity Storage Unit High-capacity Storage Unit Experimental Energy Well Experimental Targeting Computer Experimental Targeting Computer Experimental Target Analyzer Experimental Core Analyzer Advanced Armor Integrity Analyzer Experimental Weapon Cycler Experimental Phase Shifter Centrium Linked Plating Centrium Linked Plating Centrium Linked Plating AEGIS Remote Shield > --- WEAPON ----------- Modified Quantum Sheargun Modified Quantum Sheargun Hypervelocity Multirail Sigix Broadsword > --- INVENTORY -------- Reinforced Quantum Reactor Centrium Leg Desublimator Experimental Coolant Injector Quantum Capacitor Experimental Phase Shifter Experimental Weapon Shielding Centrium Linked Plating Experimental Powered Armor Experimental Powered Armor AEGIS Remote Shield Drone Bay Transdimensional Reconstructor Sigix Quantum Sheargun Sigix Quantum Sheargun Sigix Quantum Sheargun Modified Quantum Sheargun Modified Quantum Sheargun Matter Neutralizer Enhanced Nova Cannon Enhanced Nova Cannon Cooled Nova Cannon Multirail Multirail Hypervelocity Linear Accelerator Graviton Cannon Graviton Cannon Hellfire Missile Launcher [Rating: 260] Favorites ----------- Power Cooled Ion Engine Engine Cooled Ion Engine Power Core Micro Fission Core Reactor Improved Quantum Reactor Propulsion Armored Medium Treads Treads Armored Medium Treads Leg Experimental Biometal Leg Wheel Armored Wheel Utility High-capacity Storage Unit Device Advanced Weapon Cycler Storage High-capacity Storage Unit Processor Advanced Signal Interpreter Hackware Relay Coupler [NC] Protection Centrium Linked Plating Artifact Matter Drive Weapon Sigix Broadsword Energy Gun Dispersion Rifle Energy Cannon Ion Burst Cannon Ballistic Gun Hypervelocity Coil Gun Ballistic Cannon Heavy Flak Cannon Launcher Heavy Missile Launcher Special Weapon Advanced Remote Datajack Impact Weapon Core Stripper Slashing Weapon Sigix Broadsword Build | -11 -10 -10 -9 -9 -9 -8 -8 -8 -8 -8 -7 -7 -6 -6 -5 -5 -5 -5 -5 -5 -4 -4 -4 -4 -3 -3 -2 -2 -2 -1 -1 -1 ------- Run | Scr Mat Min Mat Min Exi Min Mat Gar Sto Gar Fac Gar Fac Gar Fac Was Fac Gar Fac Gar Fac Gar Fac Gar Res Qua Res Tes Sec Acc Com Ac0 Slots Evolved 18 | . . . 2 . . . 2 . . . 2 . 2 . 2 . . . . . 2 . . . 2 . 2 . . 2 . . Power 1 | . . . . . . . . . . . . . . . . . . . . . . . . . . . . . . 1 . . Propulsion 2 | . . . . . . . . . . . 1 . . . . . . . . . 1 . . . . . . . . . . . Utility 12 | . . . 2 . . . 1 . . . 1 . 2 . 2 . . . . . 1 . . . 2 . 1 . . . . . Weapon 3 | . . . . . . . 1 . . . . . . . . . . . . . . . . . . . 1 . . 1 . . Parts Attached 668 | 8 13 8 15 9 17 2 20 9 12 12 2 5 28 15 13 9 11 10 3 10 4 17 12 18 13 43 8 47 44 28 78 125 Power 47 | 1 . 2 3 . 1 . . 1 1 1 . . 2 . 1 2 . . . 1 . . . . . 3 1 3 1 1 9 13 Engine 12 | 1 . 1 3 . 1 . . 1 1 1 . . 2 . . . . . . . . . . . . 1 . . . . . . Core 5 | . . 1 . . . . . . . . . . . . 1 1 . . . 1 . . . . . 1 . . . . . . Reactor 30 | . . . . . . . . . . . . . . . . 1 . . . . . . . . . 1 1 3 1 1 9 13 Propulsion 71 | 2 4 . 2 . 3 1 . . 4 2 1 1 3 2 2 2 1 1 1 2 1 . 2 2 1 2 2 4 4 . 6 13 Treads 53 | 2 2 . 2 . 2 1 . . 4 . 1 1 2 2 . 2 1 1 1 2 1 . 2 2 1 2 2 4 4 . 6 3 Leg 11 | . . . . . 1 . . . . . . . . . . . . . . . . . . . . . . . . . . 10 Wheel 7 | . 2 . . . . . . . . 2 . . 1 . 2 . . . . . . . . . . . . . . . . . Hover . | . . . . . . . . . . . . . . . . . . . . . . . . . . . . . . . . . Flight . | . . . . . . . . . . . . . . . . . . . . . . . . . . . . . . . . . Utility 301 | 2 1 . 6 . 7 1 9 . 2 2 1 3 13 2 5 2 7 4 1 2 1 7 8 7 8 22 4 30 29 23 43 49 Device 160 | 1 1 . 2 . 4 1 8 . 1 2 1 . 5 . 2 . 3 2 1 2 1 5 6 3 4 8 2 17 23 10 20 25 Storage 32 | . . . 3 . 3 . 1 . . . . . . 1 . . 3 1 . . . . 1 2 1 5 . 2 . 1 7 1 Processor 14 | 1 . . . . . . . . . . . . 2 1 . . . . . . . . 1 . . 2 . . 1 1 2 3 Hackware 27 | . . . 1 . . . . . 1 . . . . . 1 . . . . . . 2 . 2 2 3 2 2 2 5 4 . Protection 60 | . . . . . . . . . . . . 3 6 . 2 2 1 1 . . . . . . 1 1 . 5 3 6 9 20 Artifact 8 | . . . . . . . . . . . . . . . . . . . . . . . . . . 3 . 4 . . 1 . Weapon 249 | 3 8 6 4 9 6 . 11 8 5 7 . 1 10 11 5 3 3 5 1 5 2 10 2 9 4 16 1 10 10 4 20 50 Energy Gun 66 | 2 4 1 2 3 1 . 7 4 2 2 . . 1 . . . . . . 1 2 4 1 3 . . . . . . 4 22 Energy Cannon 23 | . . . . . . . . . 1 1 . . 1 1 . . . . . . . . . 1 3 5 . 1 2 . 3 4 Ballistic Gun 47 | 1 . . . . 1 . . . . . . . 2 6 4 1 2 . . . . . . 1 . 2 . 1 6 2 2 16 Ballistic Cannon 21 | . 1 1 1 2 . . 1 . . . . . . . . . . 3 . 2 . 1 . 1 . . . . . . 3 5 Launcher 44 | . 1 4 1 4 4 . 3 4 2 4 . 1 1 3 . . 1 2 . 2 . 1 . 1 . . . 1 . 1 2 1 Special Weapon 27 | . 2 . . . . . . . . . . . 1 . 1 1 . . . . . 3 1 2 . 5 . 5 2 1 3 . Impact Weapon 6 | . . . . . . . . . . . . . 3 1 . . . . . . . . . . . . . 1 . . 1 . Slashing Weapon 15 | . . . . . . . . . . . . . 1 . . 1 . . 1 . . 1 . . 1 4 1 1 . . 2 2 Piercing Weapon . | . . . . . . . . . . . . . . . . . . . . . . . . . . . . . . . . . Special Melee Weapon . | . . . . . . . . . . . . . . . . . . . . . . . . . . . . . . . . . Unidentified Prototypes 46 | . . . 2 . 2 . 2 . 2 . . . 3 . . . . . . . . . 1 . 3 2 . 8 2 . 10 9 Parts Lost 45 | . . . 1 1 . . . . 2 1 . 2 4 1 1 . . . . . . . . 6 . 1 . 2 1 . 1 21 Power 5 | . . . 1 . . . . . . . . . 1 . . . . . . . . . . . . . . . . . . 3 Propulsion 4 | . . . . . . . . . . . . 1 1 . . . . . . . . . . . . . . . . . . 2 Utility 19 | . . . . . . . . . 1 . . 1 . . 1 . . . . . . . . 1 . 1 . 2 1 . 1 10 Weapon 17 | . . . . 1 . . . . 1 1 . . 2 1 . . . . . . . . . 5 . . . . . . . 6 Highest Loss Streak 4 | . . . 1 1 . . . . 1 1 . 2 3 1 1 . . . . . . . . 3 . 1 . 1 1 . 1 4 Average Slot Usage (%) 88 | . 100 100 97 100 97 100 97 100 99 99 99 99 98 98 98 93 87 94 88 97 93 93 93 96 91 80 79 75 74 77 74 90 Engine 2 | . 14 7 4 11 11 11 9 9 9 9 7 7 6 6 2 . . . . . . . . . . 2 . . . . . . Core 1 | . . 6 6 . . . . . . . . . . . 2 3 . . . 3 5 5 5 5 4 . 3 . . . . . Reactor 2 | . . . . . . . . . . . . . . . . 1 5 5 5 1 . . . . . 1 . 4 4 6 7 6 Treads 11 | . 18 28 22 22 22 22 18 18 18 18 7 7 6 20 5 6 11 11 11 14 14 15 14 18 14 14 8 8 7 7 7 2 Leg 1 | . . . . . . . . . . . . . . . . . . . . . . . . . . . . . . . . 10 Wheel 1 | . 9 . . . . . . . . . 15 15 12 . 11 8 . . . . . . . . . . . . . . . . Device 11 | . 17 28 19 11 11 11 13 18 10 9 14 3 5 . 7 8 10 11 11 11 14 10 12 11 13 5 10 9 10 8 16 13 Storage 21 | . . . 14 22 23 33 29 27 27 27 23 23 20 21 23 23 23 27 29 29 26 26 26 30 25 24 21 25 22 19 19 12 Processor 6 | . 10 . . . . . . . . . . . 12 20 14 11 11 11 11 11 10 10 12 10 6 4 4 4 4 11 3 15 Hackware 4 | . . . 8 11 9 . . . 7 9 7 7 6 6 4 5 5 . . . . 4 . 3 8 6 7 5 4 4 2 . Protection 4 | . . . . . . . . . . . . 11 7 4 4 7 5 5 5 5 5 5 5 . 1 . 4 4 7 3 3 13 Energy Gun 4 | . 25 5 7 10 7 . 8 11 24 9 . . 3 . . . . . . . 13 5 10 7 . . . . . . . 7 Energy Cannon 1 | . . . . . . . . . . 8 7 7 5 . . . . . . . . . . . 5 1 . . 2 . . . Ballistic Gun 1 | . . . . . . . . . . . . . 1 15 17 2 4 . . . . . . 2 1 . . . . 2 . 1 Ballistic Cannon 1 | . . 9 6 . . . 2 . . . . . . . . . . 5 5 4 . 2 5 3 1 . . . . . . . Launcher 3 | . . 12 7 10 12 22 15 15 . 8 15 15 1 . . . . 11 . 10 1 1 . . . . . 2 . 1 . . Special Weapon 1 | . 2 . . . . . . . . . . . . . . 2 . . . . . 2 . . . 2 4 2 3 3 1 . Slashing Weapon 1 | . . . . . . . . . . . . . . . . 4 5 . 4 . . . . . 2 3 5 4 4 3 2 2 Naked Turns . | . . . . . . . . . . . . . . . . . . . . . . . . . . . . . . . . . Heaviest Build 303 | 8 12 15 47 48 122 107 123 126 126 127 127 140 141 151 161 171 171 208 208 208 197 196 197 197 205 246 214 266 270 287 303 275 Greatest Support 170 | 40 40 40 40 40 52 40 40 40 40 40 24 24 24 60 24 97 97 97 97 97 124 124 129 129 124 124 150 150 160 160 170 170 Greatest Overweight (x) 11 | . 1 . 1 1 3 2 3 3 3 5 5 5 11 4 6 7 1 2 2 2 1 1 1 3 3 2 1 3 1 1 2 2 Average Overweight (x) 1 | . . . . 1 1 2 2 2 2 2 5 5 4 1 6 4 1 1 2 2 1 1 1 1 1 1 1 1 1 1 1 1 Largest Inventory Capacity 46 | 4 4 4 16 16 28 28 28 28 28 28 28 28 28 36 36 36 36 44 44 44 44 44 44 44 44 44 44 44 46 46 46 46 Average Capacity 35 | 4 4 4 10 16 19 28 28 28 28 28 28 28 28 30 36 36 36 42 44 44 44 44 44 44 44 44 44 44 44 46 45 31 Most Carried 46 | 4 4 4 16 16 20 21 28 28 28 28 23 27 28 29 36 36 36 40 44 44 44 44 44 44 44 44 44 44 45 46 46 46 Average Carried 33 | 1 3 3 8 15 17 20 25 27 27 25 22 25 27 27 34 34 35 39 42 43 42 43 42 38 42 43 42 42 43 41 43 28 Final Capacity 46 | 4 4 4 16 16 28 28 28 28 28 28 28 28 28 36 36 36 36 44 44 44 44 44 44 44 44 44 44 44 46 46 46 22 Final Carried 44 | 4 4 4 16 16 18 21 28 28 28 24 22 27 28 29 35 36 36 40 44 44 44 43 43 39 44 41 44 42 44 41 44 19 Class Distribution -------------------- 24% | Botlord-Mutant 21% | Hauler-Mutant 10% | Mutant 10% | Bothacker-Mutant 6% | Scavenger-Mutant 4% | Hauler-Bomber 4% | Scavenger-Tank 4% | Scavenger-Gunner Dominant Class ---------------- Mutant | -10/Materials Mutant | -10/Mines Mutant | -9/Materials Mutant | -9/Mines Hauler-Mutant | -9/Exiles Hauler-Mutant | -8/Mines Hauler-Bomber | -8/Materials Hauler-Bomber | -8/Garrison Hauler-Bomber | -8/Storage Hauler-Gunner | -8/Garrison Hauler-Mutant | -7/Factory Hauler-Mutant | -7/Garrison Hauler-Mutant | -6/Factory Hauler-Gunner | -6/Garrison Hauler-Mutant | -5/Factory Hauler-Mutant | -5/Waste Hauler-Mutant | -5/Factory Bothacker-Mutant | -5/Garrison Botlord-Mutant | -5/Factory Bothacker-Mutant | -5/Garrison Botlord-Tank | -4/Factory Botlord-Mutant | -4/Garrison Botlord-Mutant | -4/Factory Botlord-Mutant | -4/Garrison Botlord-Mutant | -3/Research Botlord-Mutant | -3/Quarantine Botlord-Mutant | -2/Research Botlord-Mutant | -2/Testing Bothacker-Mutant | -2/Section 7 Botlord-Assassin | -1/Access Hauler-Mutant | -1/Command Scavenger-Tank | -1/Access_0 Resources | -11 -10 -10 -9 -9 -9 -8 -8 -8 -8 -8 -7 -7 -6 -6 -5 -5 -5 -5 -5 -5 -4 -4 -4 -4 -3 -3 -2 -2 -2 -1 -1 -1 ----------- Run | Scr Mat Min Mat Min Exi Min Mat Gar Sto Gar Fac Gar Fac Gar Fac Was Fac Gar Fac Gar Fac Gar Fac Gar Res Qua Res Tes Sec Acc Com Ac0 Matter Collected 13678 | 269 57 244 234 269 110 42 547 232 292 215 . 259 512 413 . 290 160 321 . 279 . 595 154 365 . 744 17 816 933 877 2306 2126 Remotely 2441 | . . . . . . . 331 . . 133 . . . . . . 120 217 . . . 170 . . . . . 319 66 556 378 151 Salvage Created 22394 | 173 57 45 460 209 108 107 612 287 801 599 . 705 1021 656 . 638 161 972 . 404 . 370 127 679 21 1053 . 1225 1988 1708 2884 4324 Parts 1136 | 15 7 2 39 13 5 11 54 17 30 22 . 29 44 31 . 16 3 43 . 21 . 15 2 24 . 65 . 55 113 80 132 248 Haulers Intercepted 9 | . . . 3 . . . 2 . 1 . . . 1 . . . . . . . . . . . . . . . . 2 . . Recyclers Shooed 11 | . 1 . 1 . . . 1 . . . . . 1 . . . 1 . . . . . . . . . . . . 5 1 . Parts Field Recycled . | . . . . . . . . . . . . . . . . . . . . . . . . . . . . . . . . . Retrieved Matter . | . . . . . . . . . . . . . . . . . . . . . . . . . . . . . . . . . Parts Self-Destructed . | . . . . . . . . . . . . . . . . . . . . . . . . . . . . . . . . . Prevented . | . . . . . . . . . . . . . . . . . . . . . . . . . . . . . . . . . Kills | -11 -10 -10 -9 -9 -9 -8 -8 -8 -8 -8 -7 -7 -6 -6 -5 -5 -5 -5 -5 -5 -4 -4 -4 -4 -3 -3 -2 -2 -2 -1 -1 -1 ------- Run | Scr Mat Min Mat Min Exi Min Mat Gar Sto Gar Fac Gar Fac Gar Fac Was Fac Gar Fac Gar Fac Gar Fac Gar Res Qua Res Tes Sec Acc Com Ac0 Combat Hostiles Destroyed 349 | . . 2 10 11 1 6 12 15 12 17 . 18 12 13 . 2 3 23 . 18 . 9 3 18 2 20 . 12 22 12 30 46 Melee 32 | . . . . . . . . . . . . . . . . 1 . . . . . . . . . 12 . 7 11 . 1 . Guns 98 | . . . 2 1 1 . 2 3 2 . . . . 4 . 1 . . . . . 3 2 5 . . . . 10 11 10 41 Cannons 48 | . . 2 2 1 . . . . . 3 . 1 6 . . . . 5 . 6 . 4 1 6 2 8 . . . . 1 . AOE 157 | . . . 6 9 . 6 10 12 7 14 . 15 5 9 . . 3 18 . 12 . 2 . 5 . . . 2 . 1 16 5 Classes Destroyed 23 | 2 2 1 4 1 . . 2 2 1 . . 1 2 . . 1 . . . . . . . . . 1 . 1 2 . . . Worker 15 | . . . . 1 . . 1 . . . . . 1 . . . . . . . . . . . . 2 . 2 . 8 . . Builder 17 | . 1 . 1 . . . 5 . . . . . 3 . . . . . . . . . . . . 2 . 2 1 2 . . Tunneler 6 | 4 . . . 1 . . . . . . . . . . . . . . . . . . . . . . . . . 1 . . Hauler 9 | . . . 3 . . . 2 . 1 . . . 1 . . . . . . . . . . . . . . . . 2 . . Recycler 20 | 1 . . 1 1 . . 3 . . . . . 3 . . . . . . . . . . . . . . 1 1 3 6 . Carrier 2 | . . . . . . . . . . . . . . . . . . . . . . . . . . . . . 1 . 1 . Mechanic 2 | . . . . . . . . . . . . . 1 . . . . . . . . . . . . . . . . . 1 . Operator 5 | . . . . . . . 1 . . . . . 1 . . . . . . . . . 1 . . . . . . 2 . . Watcher 11 | . 1 . 2 . . . 1 . . . . . . . . . . . . 1 . . . . . 1 . 1 1 2 1 . Swarmer 89 | . . . 4 5 . 4 3 7 . . . 4 . 7 . . . 9 . 12 . 5 . 7 . 11 . . 1 . 10 . Grunt 109 | . . . 5 6 . 2 8 6 7 14 . 10 6 2 . . 3 10 . 2 . 4 2 7 . 4 . 3 . 2 6 . Brawler 6 | . . . . . . . . 1 3 1 . . . . . . . . . . . 1 . . . . . . . . . . Duelist 8 | . . . . . . . . 1 . . . 1 . . . . . 2 . 2 . . . 2 . . . . . . . . Protector 2 | . . . . . . . . . 1 . . 1 . . . . . . . . . . . . . . . . . . . . Researcher 5 | . . . . . . . . . . . . . . . . . . . . . . . . . . 2 . . 3 . . . Sentry 18 | . . 2 1 . . . . . 1 2 . . 1 . . . . 2 . 1 . . 1 1 . . . . 3 2 1 . Demolisher 1 | . . . . . . . . . . . . 1 . . . . . . . . . . . . . . . . . . . . Hunter 17 | . . . . . . . 1 . . . . 1 2 3 . . . . . 1 . . . . . . . 1 1 6 1 . Programmer 40 | . . . . . . . . . . . . . 3 1 . . . . . . . . . 1 2 5 . 6 14 2 6 . Compactor 2 | . . . . . . . . . . . . . . . . 2 . . . . . . . . . . . . . . . . S7 Guard 1 | . . . . . . . . . . . . . . . . . . . . . . . . . . . . . 1 . . . M Guard 2 | . . . . . . . . . . . . . . . . . . . . . . . . . . . . . . . 2 . Enhanced Grunt 28 | . . . . . . . . . . . . . . . . . . . . . . . . . . . . . . . . 28 Enhanced Sentry 4 | . . . . . . . . . . . . . . . . . . . . . . . . . . . . . . . . 4 Enhanced Hunter 7 | . . . . . . . . . . . . . . . . . . . . . . . . . . . . . . . . 7 Combat Programmer 2 | . . . . . . . . . . . . . . . . . . . . . . . . . . . . . . . 2 . Executioner 2 | . . . . . . . . . . . . . . . . . . . . . . . . . . . . . 2 . . . Fortress 1 | . . . . . . . . . . . . . . . . . . . . . . . . . . . . 1 . . . . Protovariant D 1 | . . . . . . . . . . . . . . . . . . . . . . . . . . . . 1 . . . . Zionite 1 | . . . 1 . . . . . . . . . . . . . . . . . . . . . . . . . . . . . Thug 2 | . . . . . . . . . 2 . . . . . . . . . . . . . . . . . . . . . . . Savage 1 | . . . . . . . . . . . . . . . . . 1 . . . . . . . . . . . . . . . Martyr 2 | . . . . . . . . . . . . . . . . 2 . . . . . . . . . . . . . . . . Best Kill Streak 16 | 5 2 2 7 4 1 4 7 5 9 9 . 6 7 10 . 1 3 16 . 5 . 2 2 6 2 8 . 4 6 10 13 7 Combat Bots Only 16 | . . 2 6 3 1 4 3 5 9 9 . 6 5 10 . 1 3 16 . 5 . 2 2 6 2 8 . 2 4 5 9 7 Max Kills in Single Turn 5 | 1 1 1 3 2 1 4 4 3 5 3 . 4 4 3 . 1 1 3 . 4 . 2 1 4 1 1 . 3 2 4 5 2 Gunslinging 1 | . . . . . . . . . . . . . . . . . . . . . . . . . . . . . . . . 1 Exploded 4 | . . . 2 2 . 4 2 3 4 3 . 4 3 3 . . 1 3 . 4 . 2 . 4 . . . 1 . 1 4 1 Melee 1 | . . . . . . . . . . . . . . . . 1 . . . . . . . . . 1 . 1 1 . 1 . Uniques/NPCs Destroyed 9 | . . . . . 1 . . . . . . . . . . . . . . . . . . . . . . . . . 1 7 8R-AWN (-9/Exiles) MAIN.C Shell (-1/Command) MAIN.C (-1/Command) A8 (-1/Access_0) A6 (-1/Access_0) A5 (-1/Access_0) A4 (-1/Access_0) A2 (-1/Access_0) Architect (-1/Access_0) A3 (-1/Access_0) Combat | -11 -10 -10 -9 -9 -9 -8 -8 -8 -8 -8 -7 -7 -6 -6 -5 -5 -5 -5 -5 -5 -4 -4 -4 -4 -3 -3 -2 -2 -2 -1 -1 -1 -------- Run | Scr Mat Min Mat Min Exi Min Mat Gar Sto Gar Fac Gar Fac Gar Fac Was Fac Gar Fac Gar Fac Gar Fac Gar Res Qua Res Tes Sec Acc Com Ac0 Damage Taken 31662 | . . 232 205 299 421 20 292 121 516 189 . 601 1263 827 . 219 40 391 . 340 87 552 298 1916 189 2506 73 1069 1297 678 2891 14130 Core 2298 | . . 36 47 21 36 . 25 28 43 40 . 13 137 157 . 41 . 48 . 20 . 72 22 146 . 117 . 117 23 . 100 1009 Absorbed by Shields 16836 | . . . . . . . 85 48 18 . . . . 145 . . . . . 19 . 175 . 254 . . . . 706 707 2548 12131 Reduced by Siege Mode 853 | . . . . . . . . . . . . . . . . . . . . . . . . 60 13 73 . . 8 9 202 488 Redirected to Core 62 | . . . . . . . . . . . . . . . . . . . . . . . . . . . . 62 . . . . Core Remaining (%) 79 | 100 . 85 . . . 74 . . . 75 . 98 . 65 . . . . . 89 . . . 79 . 91 . . 81 . . 40 Volleys Fired 1445 | 32 13 8 26 18 1 4 20 16 17 13 1 19 41 18 1 13 5 27 . 41 . 36 15 54 37 56 10 24 73 53 211 542 Largest 4 | 1 2 2 2 2 1 2 3 3 3 3 1 2 3 3 1 1 1 2 . 3 . 3 3 3 1 1 1 1 1 1 3 4 Hottest 360 | 20 100 78 90 84 75 60 165 165 165 210 39 100 178 84 30 35 39 89 . 128 . 264 229 274 105 113 40 100 100 60 300 360 Shots Fired 2378 | 32 18 15 39 24 41 8 37 45 40 19 1 20 47 36 1 13 5 31 . 48 . 48 27 120 37 56 10 24 73 53 228 1182 Gun 1741 | 32 10 . 26 1 41 . 12 27 35 4 . . 5 31 . 10 . . . 1 . 24 12 85 . . . . 46 39 138 1162 Cannon 309 | . . 14 9 7 . . 1 . . 4 . 2 27 . . . . 14 . 30 . 9 14 25 37 31 . 4 9 . 63 9 Launcher 201 | . . 1 4 16 . 8 24 18 5 11 1 18 14 5 . . 5 17 . 17 . 1 . 3 . . . 4 . 6 12 11 Special 127 | . 8 . . . . . . . . . . . 1 . 1 3 . . . . . 14 1 7 . 25 10 16 18 8 15 . Kinetic 580 | 32 . 14 9 7 40 . 1 . . . . . 4 31 . 10 . 14 . 30 . 9 14 10 . . . . 46 39 41 229 Thermal 294 | . 8 . . . 1 . 4 . . 4 . 2 28 . . . . . . 1 . 24 12 100 37 31 . . . . 41 1 Explosive 155 | . . 1 4 16 . 8 24 18 1 11 1 5 10 3 . . 5 2 . 9 . 1 . 3 . . . 4 . 6 12 11 Electromagnetic 184 | . 10 . 26 1 . . 8 27 39 4 . 13 4 2 . . . 15 . 8 . . . . . . . 4 9 . 14 . Slashing 1046 | . . . . . . . . . . . . . . . . . . . . . . . . . . . . . . . 105 941 Robot Hit Streak 50 | 9 4 12 17 10 13 12 9 8 14 8 . 2 9 24 3 8 4 11 . 18 . 20 22 22 12 22 17 17 23 10 50 37 Robot Miss Streak 5 | 4 2 1 4 3 1 . 2 2 1 3 . 4 4 2 . 1 1 3 . 4 . 4 2 2 . 4 1 2 3 5 2 5 Penetration Max 3 | . . . . . . . . . . . . . . . . 2 . . . . . . . . . . . . 1 3 2 1 Secondary Targets 14 | . . . 1 . . . . . 1 . . . . . . . . . . . . . . . . . . . . . . 12 Max Gunslinging Chain 2 | . . . 1 . . . . . 1 . . . . . . . . . . . . . . . . . . . . . . 2 Capacitor 276 | . . . . . . . . . . . . . . . . . . . . . . . . . 32 . . . . . 106 138 Autonomous 40 | . . . . . 40 . . . . . . . . . . . . . . . . . . . . . . . . . . . Shots Hit Robots 1975 | 23 5 12 24 11 35 2 17 23 30 13 . 8 44 35 1 19 8 20 . 39 . 42 25 88 13 73 7 47 90 48 218 955 Core Hits 1406 | 11 3 3 25 25 6 9 39 21 23 33 . 28 43 34 . 6 14 55 . 56 . 24 19 48 4 25 . 23 60 69 108 592 Critical Hits 391 | . . . 1 . 1 . . . . . . . . . . 4 . . . . . 1 1 3 1 9 . 7 50 71 45 197 Critical Kills 85 | . . . . . . . . . . . . . . . . 1 . . . . . . . . . 4 . 2 17 24 14 23 Critical Parts Destroyed 202 | . . . 1 . . . . . . . . . . . . . . . . . . . 1 3 1 5 . 5 30 29 28 99 Melee Attacks 349 | . . . . . . . . . . . . . 18 7 . 9 9 . 2 . . . . . 4 45 . 70 122 27 23 13 Kinetic 2 | . . . . . . . . . . . . . . . . . . . . . . . . . . . . 2 . . . . Impact 25 | . . . . . . . . . . . . . 18 7 . . . . . . . . . . . . . . . . . . Slashing 322 | . . . . . . . . . . . . . . . . 9 9 . 2 . . . . . 4 45 . 68 122 27 23 13 Piercing . | . . . . . . . . . . . . . . . . . . . . . . . . . . . . . . . . . Sneak Attacks 38 | . . . . . . . . . . . . . 3 . . 7 3 . . . . . . . 1 11 . 2 6 2 3 . Combat Hostiles 13 | . . . . . . . . . . . . . . . . 5 . . . . . . . . . 6 . . 1 . 1 . Follow-up Attacks . | . . . . . . . . . . . . . . . . . . . . . . . . . . . . . . . . . Damage Inflicted 87215 | 171 92 260 890 885 981 549 2590 1347 1729 1412 . 1735 2918 1651 . 795 1067 2177 . 1845 . 912 819 2655 680 4970 28 4101 4131 2214 11445 32166 Guns 39150 | 170 88 . 306 17 981 . 125 235 519 51 . . 103 451 . 97 . . . . . 521 314 1534 . . . . 640 638 4276 28084 Cannons 8877 | . . 257 135 37 . . . . . 129 . 43 1059 . . . . 222 . 823 . 145 382 725 533 1024 . 215 122 . 2766 260 Explosions 23411 | . . . 441 799 . 549 2446 1112 1210 1232 . 1692 1394 654 . . 613 1955 . 1003 . 245 . 355 . . . 1384 . 908 2799 2620 Melee 14822 | . . . . . . . . . . . . . 362 546 . 698 454 . . . . . . . 147 3925 . 2502 3369 606 1604 609 Ramming 955 | 1 4 3 8 32 . . 19 . . . . . . . . . . . . 19 . 1 123 41 . 21 28 . . 62 . 593 Kinetic 12554 | 170 . 257 135 37 981 . . . . . . . 87 451 . 97 . 222 . 823 . 145 382 254 . . . . 640 638 1038 6197 Thermal 9249 | . . . 31 . . . 99 . 495 129 . 230 1107 37 . . . 484 . . . 521 314 2005 533 1024 . . . . 2204 36 Explosive 18416 | . . . 410 799 . 549 2412 1112 . 1232 . 641 958 492 . . 613 325 . 757 . 245 . 355 . . . 1384 . 908 2604 2620 Electromagnetic 5364 | . 88 . 306 17 . . 60 235 1234 51 . 864 404 125 . . . 1146 . 246 . . . . . . . 215 122 . 251 . Impact 908 | . . . . . . . . . . . . . 362 546 . . . . . . . . . . . . . . . . . . Slashing 39769 | . . . . . . . . . . . . . . . . 698 454 . . . . . . . 147 3925 . 2502 3369 606 5348 22720 Piercing . | . . . . . . . . . . . . . . . . . . . . . . . . . . . . . . . . . Highest Corruption 15 | . . . . . . . . . . . . 1 13 15 . . . 2 2 2 . . . . 1 10 . . 1 . . 5 Average Corruption 4 | . . . . . . . . . . . . 1 10 14 . . . 1 2 2 . . . . 1 3 . . 1 . . 4 Corruption Purged . | . . . . . . . . . . . . . . . . . . . . . . . . . . . . . . . . . Effects 164 | . . . . . . . . . . . . . 47 34 . . . 1 1 13 . . . . 1 19 . . 6 . . 42 Message Errors 29 | . . . . . . . . . . . . . 4 6 . . . . . 3 . . . . . 4 . . 3 . . 9 Matter Fused 30 | . . . . . . . . . . . . . 15 7 . . . . . . . . . . . 2 . . . . . 6 Heat Flow Errors 17 | . . . . . . . . . . . . . 7 2 . . . . . 3 . . . . . 2 . . . . . 3 Energy Discharges 17 | . . . . . . . . . . . . . 1 4 . . . 1 1 . . . . . 1 5 . . 1 . . 3 Data Loss (minor) 21 | . . . . . . . . . . . . . 7 2 . . . . . 4 . . . . . 2 . . 1 . . 5 Data Loss (major) 3 | . . . . . . . . . . . . . 1 2 . . . . . . . . . . . . . . . . . . Misfires 1 | . . . . . . . . . . . . . 1 . . . . . . . . . . . . . . . . . . . Alerts 1 | . . . . . . . . . . . . . . 1 . . . . . . . . . . . . . . . . . . Misdirections 11 | . . . . . . . . . . . . . 6 5 . . . . . . . . . . . . . . . . . . Targeting Errors 30 | . . . . . . . . . . . . . 4 5 . . . . . 2 . . . . . 4 . . 1 . . 14 Weapon Failures 4 | . . . . . . . . . . . . . 1 . . . . . . 1 . . . . . . . . . . . 2 Overload Shots . | . . . . . . . . . . . . . . . . . . . . . . . . . . . . . . . . . Overflow Damage 3701 | . . 11 . 15 . 14 201 3 15 9 . 39 224 122 . . 305 34 . 5 . 33 6 7 15 918 8 291 845 162 154 265 Projectiles 227 | . . 11 . . . . . . . . . . . . . . . . . . . . . 7 15 67 . . . . 127 . Explosions 694 | . . . . 15 . 14 201 3 15 9 . 39 50 . . . . 34 . 5 . 33 . . . . . 128 . 87 27 34 Melee 2780 | . . . . . . . . . . . . . 174 122 . . 305 . . . . . 6 . . 851 8 163 845 75 . 231 Knockbacks 56 | . . 1 . . . . . . . . . . 1 . . . . 7 . 15 . 6 3 5 . 1 1 . . . 4 12 Impact 12 | . . 1 . . . . . . . . . . 1 . . . . . . . . . . . . 1 1 . . . . 8 Kinetic 43 | . . . . . . . . . . . . . . . . . . 7 . 14 . 6 3 5 . . . . . . 4 4 Secondary 1 | . . . . . . . . . . . . . . . . . . . . 1 . . . . . . . . . . . . Self-Inflicted Damage 1068 | . . . . 46 . . 33 40 103 40 . 96 47 101 . . . 54 . 26 . . . 41 . . . 86 . 96 89 170 Shots 32 | . . . . 3 . . 1 2 5 1 . 4 2 3 . . . 3 . 2 . . . 1 . . . 1 . 1 1 2 Rammed 35 | 1 1 1 2 7 . . 2 . 1 . . . . . . . . . . 1 . 1 6 2 . 1 1 . . 3 . 5 Targets Rammed 59 | 1 1 1 2 8 . . 2 . 1 . . . . . . . . . . 1 . 1 6 2 . 1 1 . . 4 . 27 Kicked 22 | . . . . . . . . . . . . . . . . . . . . . . . . . . . . . . . . 22 Crushed 2 | . . . . 1 . . . . . . . . . . . . . . . . . . . . . . . . . 1 . . Highest Temperature 606 | . 80 126 48 15 24 10 81 196 199 135 . 90 252 251 . 22 35 125 . 247 . 228 256 198 185 193 57 291 193 . 359 606 Average Temperature 89 | . 25 55 19 7 18 6 20 86 96 59 . 31 72 63 . 11 20 41 . 64 . 88 143 103 76 94 21 78 86 . 123 129 Received Heat Transfer 2238 | . . 45 21 99 . 9 114 6 147 72 . 72 114 108 . 9 18 117 . 71 . 62 81 236 . 18 9 27 67 . 132 584 Effects 7 | . . . . . . . . . . . . . . . . . . . . 1 . . 1 . . . . . . . . 5 Shutdowns 2 | . . . . . . . . . . . . . . . . . . . . . . . . . . . . . . . . 2 Energy Bleed 2 | . . . . . . . . . . . . . . . . . . . . 1 . . 1 . . . . . . . . . Damage (major) 3 | . . . . . . . . . . . . . . . . . . . . . . . . . . . . . . . . 3 Siege Activations 30 | . . . . . . . . . . . . . . . . . . . . . . . . 1 1 3 . 1 3 4 6 11 Total Turns 633 | . . . . . . . . . . . . . . . . . . . . . . . . 25 43 78 . 8 38 17 204 220 Longest Duration 89 | . . . . . . . . . . . . . . . . . . . . . . . . 25 43 34 . 8 19 10 51 89 Robots Corrupted 11 | . . . . . . . . . 3 . . 2 1 . . . . . . . . . . . . . . 2 1 . 2 . Combat Hostiles 11 | . . . . . . . . . 3 . . 2 1 . . . . . . . . . . . . . . 2 1 . 2 . Parts Fried 48 | . . . 4 . . . . 1 8 . . 7 8 1 . . . 5 . 3 . . . . . . . 3 . . 8 . Impact Corruptions 24 | . . . . . . . . . . . . . 5 3 . . . . . . . . 1 . . . 1 . . . . 14 Robots Melted 2 | . . . . . . . . . . . . . . . . . . . . . . . . 2 . . . . . . . . Combat Hostiles 2 | . . . . . . . . . . . . . . . . . . . . . . . . 2 . . . . . . . . Parts Melted 8 | . . . . . . . . . 2 . . . 3 . . . . . . . . . . 2 . . . . . . . 1 Heat Transferred 8514 | . . . 50 . . . 198 . 600 150 . 300 1312 50 . . . 500 . . . 740 444 2327 444 851 . . . . 511 37 Parts Sabotaged . | . . . . . . . . . . . . . . . . . . . . . . . . . . . . . . . . . Parts Stolen . | . . . . . . . . . . . . . . . . . . . . . . . . . . . . . . . . . Parts Stripped . | . . . . . . . . . . . . . . . . . . . . . . . . . . . . . . . . . Power Chain Reactions 23 | . . . 1 . . . 1 . 8 . . 3 1 1 . . . 6 . . . . . . . . . . . . 2 . Missiles Intercepted 7 | . . . . . . . . . . . . . . . . . . . . . . . . . . . . . . . 7 . Alert | -11 -10 -10 -9 -9 -9 -8 -8 -8 -8 -8 -7 -7 -6 -6 -5 -5 -5 -5 -5 -5 -4 -4 -4 -4 -3 -3 -2 -2 -2 -1 -1 -1 ------- Run | Scr Mat Min Mat Min Exi Min Mat Gar Sto Gar Fac Gar Fac Gar Fac Was Fac Gar Fac Gar Fac Gar Fac Gar Res Qua Res Tes Sec Acc Com Ac0 Peak Influence 1011 | 25 81 89 405 313 . 214 665 901 495 652 356 680 558 701 382 238 576 909 493 977 512 469 321 475 347 295 165 364 302 823 1011 . Average Influence 320 | 16 35 39 204 172 . 169 354 542 251 550 347 520 478 569 346 162 283 612 490 745 512 414 201 330 234 110 153 195 89 454 838 . Maximum Alert Level 4 | . . . 2 1 . 1 2 3 2 2 1 2 2 3 1 1 2 3 2 3 2 2 1 2 1 1 . 1 1 3 4 . Low Security (%) 37 | 100 100 100 46 86 . 45 22 . 40 . . . . . 11 63 46 . . . . . 34 25 44 82 100 58 91 5 . . Level 1 22 | . . . 49 13 . 54 35 18 46 17 100 21 15 13 88 36 . 31 . 11 . 54 65 15 55 17 . 41 8 44 . . Level 2 22 | . . . 4 . . . 41 57 13 82 . 78 84 73 . . 53 8 100 20 100 45 . 59 . . . . . 45 . . Level 3 17 | . . . . . . . . 23 . . . . . 13 . . . 60 . 67 . . . . . . . . . 4 94 . Level 4 . | . . . . . . . . . . . . . . . . . . . . . . . . . . . . . . . 4 . Level 5 . | . . . . . . . . . . . . . . . . . . . . . . . . . . . . . . . . . High Security . | . . . . . . . . . . . . . . . . . . . . . . . . . . . . . . . . . Max Security . | . . . . . . . . . . . . . . . . . . . . . . . . . . . . . . . . . Squads Dispatched 54 | . 2 . 1 . . . 3 . 6 . . . 6 . 1 . 2 . 1 . . . 2 . 2 5 . 5 8 5 5 . Investigation 7 | . 2 . . . . . . . 2 . . . . . 1 . . . . . . . 1 . 1 . . . . . . . Extermination 22 | . . . . . . . . . . . . . 3 . . . 1 . . . . . . . 1 3 . 3 8 1 2 . Reinforcement 14 | . . . 1 . . . 2 . 1 . . . 2 . . . . . 1 . . . 1 . . 2 . 2 . 1 1 . Assault 8 | . . . . . . . 1 . 2 . . . 1 . . . 1 . . . . . . . . . . . . 1 2 . Garrison 3 | . . . . . . . . . 1 . . . . . . . . . . . . . . . . . . . . 2 . . Intercept . | . . . . . . . . . . . . . . . . . . . . . . . . . . . . . . . . . Construction Impeded 2 | . . . . . . . 1 . . . . . 1 . . . . . . . . . . . . . . . . . . . Haulers Reinforced 3 | . . . . . . . . . . . . . 1 . . . . . . . . . 1 . . . . . . 1 . . Alert ID Control Effect 23 | . . . . . . . . . . . . . . . . . . . . . . 4 . 2 . 1 . 8 . 5 3 . Stealth | -11 -10 -10 -9 -9 -9 -8 -8 -8 -8 -8 -7 -7 -6 -6 -5 -5 -5 -5 -5 -5 -4 -4 -4 -4 -3 -3 -2 -2 -2 -1 -1 -1 --------- Run | Scr Mat Min Mat Min Exi Min Mat Gar Sto Gar Fac Gar Fac Gar Fac Was Fac Gar Fac Gar Fac Gar Fac Gar Res Qua Res Tes Sec Acc Com Ac0 Distress Signals 39 | . . . 1 . . . 1 . 2 . . . . . . . . . . 2 . . 1 . . 1 1 4 2 2 22 . Communications Jammed 62 | . . . . . . . . . . . . . . . . . . . . . . . . . . . . 12 24 24 2 . Distress Signals 58 | . . . . . . . . . . . . . . . . . . . . . . . . . . . . 11 24 21 2 . Times Spotted 567 | . 2 3 21 15 1 7 15 11 25 16 . 19 15 12 1 4 14 22 1 21 . 31 7 27 4 36 4 28 46 20 48 91 Peak Tracking Total 10 | . 1 2 7 7 2 4 5 5 8 6 . 6 4 8 1 2 5 10 . 6 2 10 4 9 3 9 2 5 7 6 7 7 Tactical Retreats 35 | . . . . 1 . 1 . . 1 . . 1 . . . . . 1 . . . 5 . 2 . 5 . 1 15 2 . . Traps | -11 -10 -10 -9 -9 -9 -8 -8 -8 -8 -8 -7 -7 -6 -6 -5 -5 -5 -5 -5 -5 -4 -4 -4 -4 -3 -3 -2 -2 -2 -1 -1 -1 ------- Run | Scr Mat Min Mat Min Exi Min Mat Gar Sto Gar Fac Gar Fac Gar Fac Was Fac Gar Fac Gar Fac Gar Fac Gar Res Qua Res Tes Sec Acc Com Ac0 Traps Triggered 50 | . . . 1 . . . . 5 1 5 . 3 1 2 2 . 1 4 . 8 1 2 1 6 1 . . . . . 6 . Indirectly 4 | . . . . . . . . . . . . . . . . . . 1 . 3 . . . . . . . . . . . . Trap Hack Attempts . | . . . . . . . . . . . . . . . . . . . . . . . . . . . . . . . . . Triggered . | . . . . . . . . . . . . . . . . . . . . . . . . . . . . . . . . . Disarmed . | . . . . . . . . . . . . . . . . . . . . . . . . . . . . . . . . . Reprogrammed . | . . . . . . . . . . . . . . . . . . . . . . . . . . . . . . . . . Reused . | . . . . . . . . . . . . . . . . . . . . . . . . . . . . . . . . . Traps Extracted . | . . . . . . . . . . . . . . . . . . . . . . . . . . . . . . . . . Installed . | . . . . . . . . . . . . . . . . . . . . . . . . . . . . . . . . . Triggered 1 | . . . . . . . . . . . . . . . . . . . . . . . . . . . . . . . 1 . Exploded 1 | . . . . . . . 1 . . . . . . . . . . . . . . . . . . . . . . . . . Machines | -11 -10 -10 -9 -9 -9 -8 -8 -8 -8 -8 -7 -7 -6 -6 -5 -5 -5 -5 -5 -5 -4 -4 -4 -4 -3 -3 -2 -2 -2 -1 -1 -1 ---------- Run | Scr Mat Min Mat Min Exi Min Mat Gar Sto Gar Fac Gar Fac Gar Fac Was Fac Gar Fac Gar Fac Gar Fac Gar Res Qua Res Tes Sec Acc Com Ac0 Machines Disabled 75 | . . 1 3 1 3 2 2 3 4 . . 1 . 1 . . 1 2 . 2 . . . 3 1 9 . 6 10 2 5 13 Max in Single Turn 2 | . . . 1 1 1 2 1 1 1 . . 1 . 1 . . 1 1 . 1 . . . 1 1 1 . 2 1 1 1 2 Garrison Access 4 | . . . . . . . . . . . . . . . . . . . . . . . . . . 1 . 1 . 2 . . Garrison Relay 7 | . . . . . . . . . . . . . . 1 . . . 2 . 2 . . . 2 . . . . . . . . Machines Sabotaged . | . . . . . . . . . . . . . . . . . . . . . . . . . . . . . . . . . Garrisons Compromised . | . . . . . . . . . . . . . . . . . . . . . . . . . . . . . . . . . Overloaded Fab Kills . | . . . . . . . . . . . . . . . . . . . . . . . . . . . . . . . . . Fab Network Shutdowns 1 | . . . . . . . . . . . . . . . . . 1 . . . . . . . . . . . . . . . Hacking | -11 -10 -10 -9 -9 -9 -8 -8 -8 -8 -8 -7 -7 -6 -6 -5 -5 -5 -5 -5 -5 -4 -4 -4 -4 -3 -3 -2 -2 -2 -1 -1 -1 --------- Run | Scr Mat Min Mat Min Exi Min Mat Gar Sto Gar Fac Gar Fac Gar Fac Was Fac Gar Fac Gar Fac Gar Fac Gar Res Qua Res Tes Sec Acc Com Ac0 Machines Accessed 71 | . 3 . 5 1 1 . 2 . 8 . 1 . 6 . 1 . 3 . 1 . 1 . 4 . 5 10 . 2 11 5 1 . Terminals 47 | . 2 . 5 1 . . . . 5 . . . 4 . 1 . . . . . . . 3 . 4 8 . 1 9 3 1 . Fabricators 3 | . . . . . . . . . . . . . 1 . . . 1 . . . . . . . 1 . . . . . . . Repair Stations . | . . . . . . . . . . . . . . . . . . . . . . . . . . . . . . . . . Recycling Units 3 | . 1 . . . . . . . 2 . . . . . . . . . . . . . . . . . . . . . . . Scanalyzers 5 | . . . . . . . 1 . . . . . . . . . 1 . . . . . . . . 1 . . 2 . . . Garrison Access 12 | . . . . . . . 1 . 1 . 1 . 1 . . . 1 . 1 . 1 . 1 . . 1 . 1 . 2 . . Total Hacks 167 | . 13 . 11 2 1 . 8 . 22 . 2 . 13 . 2 . 6 . 1 . 2 . 14 . 9 21 . 3 27 8 2 . Successful 95 | . 6 . 5 2 1 . 7 . 12 . 2 . 9 . . . 6 . 1 . 2 . 11 . 3 7 . 2 12 5 2 . Failed 72 | . 7 . 6 . . . 1 . 10 . . . 4 . 2 . . . . . . . 3 . 6 14 . 1 15 3 . . Catastrophic 20 | . . . 3 . . . . . 4 . . . 1 . 1 . . . . . . . 2 . 2 2 . 1 4 . . . Database Lockouts . | . . . . . . . . . . . . . . . . . . . . . . . . . . . . . . . . . Manual 72 | . 5 . 6 2 1 . . . 16 . . . 3 . . . . . . . . . 6 . 2 16 . . 10 5 . . Terminals 121 | . 8 . 11 2 . . . . 19 . . . 9 . 2 . . . . . . . 12 . 8 17 . 1 24 6 2 . Fabricators 5 | . . . . . . . . . . . . . 2 . . . 2 . . . . . . . 1 . . . . . . . Repair Stations . | . . . . . . . . . . . . . . . . . . . . . . . . . . . . . . . . . Recycling Units 7 | . 5 . . . . . . . 2 . . . . . . . . . . . . . . . . . . . . . . . Scanalyzers 13 | . . . . . . . 6 . . . . . . . . . 2 . . . . . . . . 2 . . 3 . . . Garrison Access 20 | . . . . . . . 2 . 1 . 2 . 2 . . . 2 . 1 . 2 . 2 . . 2 . 2 . 2 . . Terminal Hacks 43 | . 2 . 4 1 1 . . . 8 . . . 3 . . . . . . . . . 8 . 2 2 . . 8 2 2 . Part Schematic 1 | . . . . . . . . . . . . . . . . . . . . . . . 1 . . . . . . . . . Prototype ID Bank 2 | . 1 . . . . . . . 1 . . . . . . . . . . . . . . . . . . . . . . . Open Door 7 | . . . . . . . . . 2 . . . . . . . . . . . . . . . 1 . . . 4 . . . Branch Access Points 4 | . . . 1 . . . . . . . . . . . . . . . . . . . 1 . 1 . . . . 1 . . Emergency Access Points 2 | . . . . . . . . . . . . . . . . . . . . . . . 1 . . . . . . . 1 . Alert Level 1 | . . . . . . . . . . . . . 1 . . . . . . . . . . . . . . . . . . . Unreport Threat 8 | . . . . . . . . . 3 . . . . . . . . . . . . . 1 . . 1 . . 2 1 . . Dispatch Records 1 | . . . 1 . . . . . . . . . . . . . . . . . . . . . . . . . . . . . Patrol Status 1 | . . . 1 . . . . . . . . . . . . . . . . . . . . . . . . . . . . . Recall Extermination 1 | . . . . . . . . . . . . . . . . . . . . . . . . . . 1 . . . . . . Recall Reinforcements 2 | . . . 1 . . . . . . . . . . . . . . . . . . . 1 . . . . . . . . . Hauler Manifests 4 | . . . . . . . . . 1 . . . 1 . . . . . . . . . 1 . . . . . 1 . . . Registered Components 2 | . . . . . . . . . . . . . . . . . . . . . . . 1 . . . . . . . 1 . Zone Layout 6 | . 1 . . 1 . . . . 1 . . . 1 . . . . . . . . . 1 . . . . . 1 . . . EX-Prototype ID Bank 1 | . . . . . 1 . . . . . . . . . . . . . . . . . . . . . . . . . . . Fabricator Hacks 4 | . . . . . . . . . . . . . 2 . . . 2 . . . . . . . . . . . . . . . Load Schematic 2 | . . . . . . . . . . . . . 1 . . . 1 . . . . . . . . . . . . . . . Build 2 | . . . . . . . . . . . . . 1 . . . 1 . . . . . . . . . . . . . . . Repair Station Hacks . | . . . . . . . . . . . . . . . . . . . . . . . . . . . . . . . . . Recycling Unit Hacks 2 | . 2 . . . . . . . . . . . . . . . . . . . . . . . . . . . . . . . Report Inventory 1 | . 1 . . . . . . . . . . . . . . . . . . . . . . . . . . . . . . . Retrieve Components 1 | . 1 . . . . . . . . . . . . . . . . . . . . . . . . . . . . . . . Scanalyzer 8 | . . . . . . . 5 . . . . . . . . . 2 . . . . . . . . . . . 1 . . . Insert Component 4 | . . . . . . . 2 . . . . . . . . . 1 . . . . . . . . . . . 1 . . . Analyze 4 | . . . . . . . 3 . . . . . . . . . 1 . . . . . . . . . . . . . . . Garrison Access Hacks 20 | . . . . . . . 2 . 1 . 2 . 2 . . . 2 . 1 . 2 . 2 . . 2 . 2 . 2 . . Unlock Access 8 | . . . . . . . 1 . 1 . 1 . 1 . . . 1 . 1 . 1 . 1 . . . . . . . . . Seal Access 3 | . . . . . . . . . . . . . . . . . . . . . . . . . . 1 . 1 . 1 . . Coupler Status 9 | . . . . . . . 1 . . . 1 . 1 . . . 1 . . . 1 . 1 . . 1 . 1 . 1 . . Unauthorized Hacks 18 | . 2 . 1 1 . . . . 3 . . . 2 . . . . . . . . . 1 . 1 3 . . 3 1 . . Terminals 14 | . 1 . 1 1 . . . . 1 . . . 2 . . . . . . . . . 1 . . 3 . . 3 1 . . Track 6 | . 1 . 1 1 . . . . . . . . 1 . . . . . . . . . . . . 2 . . . . . . Assimilate 1 | . . . . . . . . . . . . . 1 . . . . . . . . . . . . . . . . . . . Botnet 6 | . . . . . . . . . 1 . . . . . . . . . . . . . 1 . . 1 . . 2 1 . . Disrupt 1 | . . . . . . . . . . . . . . . . . . . . . . . . . . . . . 1 . . . Fabricators 1 | . . . . . . . . . . . . . . . . . . . . . . . . . 1 . . . . . . . Report 1 | . . . . . . . . . . . . . . . . . . . . . . . . . 1 . . . . . . . Repair Stations . | . . . . . . . . . . . . . . . . . . . . . . . . . . . . . . . . . Recycling Units 3 | . 1 . . . . . . . 2 . . . . . . . . . . . . . . . . . . . . . . . Tunnel 3 | . 1 . . . . . . . 2 . . . . . . . . . . . . . . . . . . . . . . . Scanalyzers . | . . . . . . . . . . . . . . . . . . . . . . . . . . . . . . . . . Garrison Access . | . . . . . . . . . . . . . . . . . . . . . . . . . . . . . . . . . Data Cores Recovered 2 | . . . . . . . . . . . . . . . . . . . . . . . 1 . . . . . . 1 . . Used . | . . . . . . . . . . . . . . . . . . . . . . . . . . . . . . . . . Hacking Detections 57 | . 3 . 5 1 . . 1 . 5 . 1 . 6 . 1 . 1 . . . 1 . 4 . 3 10 . 2 9 3 1 . Full Trace Events 5 | . 2 . . . . . . . . . . . . . 1 . . . . . . . 1 . 1 . . . . . . . Feedback Events 1 | . . . . . . . . . . . . . . . 1 . . . . . . . . . . . . . . . . . Hackware Fried 1 | . . . . . . . . . . . . . . . 1 . . . . . . . . . . . . . . . . . Feedback Blocked . | . . . . . . . . . . . . . . . . . . . . . . . . . . . . . . . . . Robot Schematics Acquired . | . . . . . . . . . . . . . . . . . . . . . . . . . . . . . . . . . Robots Built . | . . . . . . . . . . . . . . . . . . . . . . . . . . . . . . . . . Matter . | . . . . . . . . . . . . . . . . . . . . . . . . . . . . . . . . . Time . | . . . . . . . . . . . . . . . . . . . . . . . . . . . . . . . . . Total Robot Build Rating . | . . . . . . . . . . . . . . . . . . . . . . . . . . . . . . . . . Part Schematics Acquired 4 | . . . . . . . 2 . . . . . . . . . 1 . . . . . 1 . . . . . . . . . Parts Built 4 | . . . . . . . . . . . . . 2 . . . 2 . . . . . . . . . . . . . . . Matter 402 | . . . . . . . . . . . . . 146 . . . 256 . . . . . . . . . . . . . . . Time 137 | . . . . . . . . . . . . . 73 . . . 64 . . . . . . . . . . . . . . . Total Part Build Rating 22 | . . . . . . . . . . . . . 6 . . . 16 . . . . . . . . . . . . . . . Parts Repaired . | . . . . . . . . . . . . . . . . . . . . . . . . . . . . . . . . . Time . | . . . . . . . . . . . . . . . . . . . . . . . . . . . . . . . . . Parts Recycled . | . . . . . . . . . . . . . . . . . . . . . . . . . . . . . . . . . Recycled Matter . | . . . . . . . . . . . . . . . . . . . . . . . . . . . . . . . . . Retrieved Matter . | . . . . . . . . . . . . . . . . . . . . . . . . . . . . . . . . . Retrieved Components 3 | . 3 . . . . . . . . . . . . . . . . . . . . . . . . . . . . . . . Parts Scanalyzed 3 | . . . . . . . 2 . . . . . . . . . 1 . . . . . . . . . . . . . . . Part Schematics Acquired 3 | . . . . . . . 2 . . . . . . . . . 1 . . . . . . . . . . . . . . . Parts Damaged . | . . . . . . . . . . . . . . . . . . . . . . . . . . . . . . . . . Bothacking | -11 -10 -10 -9 -9 -9 -8 -8 -8 -8 -8 -7 -7 -6 -6 -5 -5 -5 -5 -5 -5 -4 -4 -4 -4 -3 -3 -2 -2 -2 -1 -1 -1 ------------ Run | Scr Mat Min Mat Min Exi Min Mat Gar Sto Gar Fac Gar Fac Gar Fac Was Fac Gar Fac Gar Fac Gar Fac Gar Res Qua Res Tes Sec Acc Com Ac0 Used RIF Installer 8 | . . . . . . . . 1 . 1 . 1 . 1 . . . 1 . 1 . 1 . 1 . . . . . . . . Coupler Efficiency 3 | . . . . . . . . . . . . 1 . . . . . . . 1 . . . 1 . . . . . . . . Patrol Navigation 1 | . . . . . . . . . . . . . . . . . . 1 . . . . . . . . . . . . . . Alert ID Control 1 | . . . . . . . . . . . . . . 1 . . . . . . . . . . . . . . . . . . Structural Interface 1 | . . . . . . . . . . 1 . . . . . . . . . . . . . . . . . . . . . . Autoassimilate 1 | . . . . . . . . . . . . . . . . . . . . . . 1 . . . . . . . . . . Robots Hacked 78 | . . . . . . . . . . . . . . . 1 3 . . . . . 11 . 6 . 13 5 11 12 4 12 . Non-combat 19 | . . . . . . . . . . . . . . . 1 . . . . . . . . . . 3 3 4 5 2 1 . Combat 59 | . . . . . . . . . . . . . . . . 3 . . . . . 11 . 6 . 10 2 7 7 2 11 . Autoassimilated 2 | . . . . . . . . . . . . . . . . . . . . . . . . . . . . . . 1 1 . Robot Hacks Applied 90 | . . . . . . . . . . . . . . . 1 3 . . . . . 13 . 7 . 21 6 13 12 3 11 . find_chute 1 | . . . . . . . . . . . . . . . 1 . . . . . . . . . . . . . . . . . drop_inventory 3 | . . . . . . . . . . . . . . . . . . . . . . . . . . . 1 . 1 1 . . purge_threat 1 | . . . . . . . . . . . . . . . . . . . . . . . . . . . . 1 . . . . locate_traps 1 | . . . . . . . . . . . . . . . . . . . . . . . . . . 1 . . . . . . map_route 3 | . . . . . . . . . . . . . . . . . . . . . . . . . . . 2 . . 1 . . disable_scanner 10 | . . . . . . . . . . . . . . . . . . . . . . . . . . 3 . 2 5 . . . locate_prototypes 3 | . . . . . . . . . . . . . . . . . . . . . . . . . . 1 . 1 1 . . . report_prototypes 1 | . . . . . . . . . . . . . . . . . . . . . . . . . . 1 . . . . . . report_analyses 5 | . . . . . . . . . . . . . . . . . . . . . . . . . . 5 . . . . . . ignore_targets 3 | . . . . . . . . . . . . . . . . 3 . . . . . . . . . . . . . . . . scatter_targeting 1 | . . . . . . . . . . . . . . . . . . . . . . . . . . . . 1 . . . . spike_heat 1 | . . . . . . . . . . . . . . . . . . . . . . . . . . . . . . . 1 . overload_power 6 | . . . . . . . . . . . . . . . . . . . . . . 1 . . . 1 1 2 1 . . . reboot_system 7 | . . . . . . . . . . . . . . . . . . . . . . 1 . 1 . 3 . . . . 2 . overwrite_iff 21 | . . . . . . . . . . . . . . . . . . . . . . 11 . 6 . 3 . 1 . . . . formatsys_low 4 | . . . . . . . . . . . . . . . . . . . . . . . . . . 2 . 1 1 . . . formatsys_high 19 | . . . . . . . . . . . . . . . . . . . . . . . . . . 1 2 4 3 1 8 . Relay Couplers Released 33 | . . . . . . . . . . . . . . 5 . . . 9 . 7 . . . 9 . . . . . 3 . . Machine Destruction 33 | . . . . . . . . . . . . . . 5 . . . 9 . 7 . . . 9 . . . . . 3 . . Attached 19 | . . . . . . . . . . . . . . . 1 . . . . . . 2 . 2 . 3 2 2 1 2 4 . Robots Rewired . | . . . . . . . . . . . . . . . . . . . . . . . . . . . . . . . . . Allies Hacked 1 | . . . . . . . . . . . . . . . . . . . . . . . . . . . . . 1 . . . Hacks Repelled . | . . . . . . . . . . . . . . . . . . . . . . . . . . . . . . . . . Allies | -11 -10 -10 -9 -9 -9 -8 -8 -8 -8 -8 -7 -7 -6 -6 -5 -5 -5 -5 -5 -5 -4 -4 -4 -4 -3 -3 -2 -2 -2 -1 -1 -1 -------- Run | Scr Mat Min Mat Min Exi Min Mat Gar Sto Gar Fac Gar Fac Gar Fac Was Fac Gar Fac Gar Fac Gar Fac Gar Res Qua Res Tes Sec Acc Com Ac0 Total Allies 82 | . . 5 . 1 . . . . 12 . . . 1 . . 19 . . . . . 10 . 6 . 6 2 5 4 2 9 . Largest Group 19 | . . 3 2 2 . . . . 10 . . . 1 . . 19 12 . . . . 2 . 2 . 2 1 4 3 2 3 . Highest-Rated Group 696 | . . 45 45 62 . . . . 173 . . . 10 . . 696 450 . . . . 58 . 94 . 94 64 210 130 444 222 . Highest-Rated Ally 222 | . . 31 31 31 . . . . 31 . . . 10 . . 50 46 . . . . 58 . 47 . 47 64 69 56 222 222 . Total Orders 32 | . . . . . . . . . 10 . . . . . . . . . . . 2 . 1 . . . 3 3 3 2 5 3 STAY 7 | . . . . . . . . . . . . . . . . . . . . . . . . . . . 1 . 2 . 3 1 GOTO 8 | . . . . . . . . . 1 . . . . . . . . . . . . . . . . . 1 2 . 2 2 . ROAM 1 | . . . . . . . . . . . . . . . . . . . . . . . . . . . . 1 . . . . FOLLOW 5 | . . . . . . . . . 3 . . . . . . . . . . . . . . . . . 1 . 1 . . . EXPLORE 9 | . . . . . . . . . 5 . . . . . . . . . . . 1 . 1 . . . . . . . . 2 RETURN 2 | . . . . . . . . . 1 . . . . . . . . . . . 1 . . . . . . . . . . . Ally Attacks 490 | . . 22 33 10 . . . . 42 . . . . . . 87 57 . . . . 34 . 12 . 9 6 55 . 14 109 . Total Damage 14259 | . . 265 416 125 . . . . 577 . . . . . . 3737 959 . . . . 696 . 319 . 208 93 1635 . 1673 3556 . Kills 69 | . . 2 9 3 . . . . 8 . . . . . . 9 10 . . . . 4 . 2 . 1 . 9 . 5 7 . Allies Corrupted 3 | . . . . . . . . . . . . . . . . . . . . . . . 1 . . . . 1 . . 1 . Allies Melted . | . . . . . . . . . . . . . . . . . . . . . . . . . . . . . . . . . Intel | -11 -10 -10 -9 -9 -9 -8 -8 -8 -8 -8 -7 -7 -6 -6 -5 -5 -5 -5 -5 -5 -4 -4 -4 -4 -3 -3 -2 -2 -2 -1 -1 -1 ------- Run | Scr Mat Min Mat Min Exi Min Mat Gar Sto Gar Fac Gar Fac Gar Fac Was Fac Gar Fac Gar Fac Gar Fac Gar Res Qua Res Tes Sec Acc Com Ac0 Robot Analysis Total . | . . . . . . . . . . . . . . . . . . . . . . . . . . . . . . . . . Derelict Logs Recovered 4 | . . 2 . 2 . . . . . . . . . . . . . . . . . . . . . . . . . . . . Drone Launches 14 | . . . . . . . . . 8 . . . . . . . . . . . 2 . 2 . . . . . . . . 2 Drone Recoveries . | . . . . . . . . . . . . . . . . . . . . . . . . . . . . . . . . . Exploration | -11 -10 -10 -9 -9 -9 -8 -8 -8 -8 -8 -7 -7 -6 -6 -5 -5 -5 -5 -5 -5 -4 -4 -4 -4 -3 -3 -2 -2 -2 -1 -1 -1 ------------- Run | Scr Mat Min Mat Min Exi Min Mat Gar Sto Gar Fac Gar Fac Gar Fac Was Fac Gar Fac Gar Fac Gar Fac Gar Res Qua Res Tes Sec Acc Com Ac0 Turns Passed 27706 | 204 312 538 672 1183 801 242 416 704 645 491 103 544 1054 587 453 426 856 524 195 968 196 575 613 859 752 1546 299 1033 2508 1136 3118 3153 Spaces Moved 12022 | 79 138 305 319 575 372 106 142 277 248 183 23 338 505 231 266 141 419 223 85 406 92 227 291 350 348 649 159 412 936 390 1436 1351 Core 1 | 1 . . . . . . . . . . . . . . . . . . . . . . . . . . . . . . . . Treads 9641 | 78 50 305 319 575 372 106 142 277 248 182 . . . 230 . 46 419 223 85 406 92 227 291 350 348 649 159 412 936 390 1436 288 Legs 1063 | . . . . . . . . . . . . . . . . . . . . . . . . . . . . . . . . 1063 Wheels 1317 | . 88 . . . . . . . . 1 23 338 505 1 266 95 . . . . . . . . . . . . . . . . Hover . | . . . . . . . . . . . . . . . . . . . . . . . . . . . . . . . . . Flight . | . . . . . . . . . . . . . . . . . . . . . . . . . . . . . . . . . Fastest Speed 50 | 50 80 160 160 190 190 210 210 210 210 140 140 140 130 130 150 150 185 185 205 205 186 186 186 186 181 181 165 165 160 160 155 130 Average Speed 172 | 158 110 160 169 190 191 210 212 225 214 228 140 140 139 208 150 162 185 200 205 208 186 186 186 188 183 181 165 165 161 160 160 141 Slowest Speed 290 | 160 160 160 190 190 230 210 230 230 230 230 140 140 200 210 150 290 185 205 205 210 186 186 186 230 230 197 181 205 165 160 210 210 Overloaded Moves . | . . . . . . . . . . . . . . . . . . . . . . . . . . . . . . . . . Propulsion Burnouts . | . . . . . . . . . . . . . . . . . . . . . . . . . . . . . . . . . Robots Hopped . | . . . . . . . . . . . . . . . . . . . . . . . . . . . . . . . . . Cave-ins Triggered 1 | . . . . . . . . . . . . . 1 . . . . . . . . . . . . . . . . . . . Teleports 3 | . . . . . . . . . . . . . . . . . . . . . . . . . . . . . 1 . 1 1 Exploration Rate (%) 42 | 6 22 86 30 92 69 32 13 58 45 49 1 60 19 50 7 83 15 61 3 76 6 49 12 66 12 77 5 49 66 17 77 77 Regions Visited 32 Branch Regions 10 Pre-discovered Areas 4 | . 1 1 . . . . . . 2 . . . . . . . . . . . . . . . . . . . . . . . Known Exits Taken 16 | . . . 1 . . 1 1 . 1 . 1 . 1 . . . 1 . 1 . 1 . 1 . 1 1 1 1 1 1 . . Unknown Exits Taken 6 | 1 1 1 . 1 1 . . . . . . . . . . . . . . . . . . . . . . . . . 1 . Scrap Searched 2 | . . 1 . 1 . . . . . . . . . . . . . . . . . . . . . . . . . . . . Spaces Dug 310 | . 5 7 . 23 . 23 . . 9 . . 8 6 7 . 2 5 6 1 . . . . 8 19 2 . 64 56 35 7 17 Terrain Destroyed 2019 | . 8 7 42 113 25 71 253 52 21 53 13 66 73 16 . 2 36 10 1 76 . 3 . 15 23 5 . 76 56 78 49 776 Melee 133 | . . . . . . . . . . . . . 6 . . 2 5 . 1 . . . . . 3 2 . 35 56 16 7 . Projectile 765 | . 8 . 1 1 25 . . . . . . . 1 1 . . . . . . . . . 2 20 3 . . . . 5 698 AOE 1121 | . . 7 41 112 . 71 253 52 21 53 13 66 66 15 . . 31 10 . 76 . 3 . 13 . . . 41 . 62 37 78 Actions | -11 -10 -10 -9 -9 -9 -8 -8 -8 -8 -8 -7 -7 -6 -6 -5 -5 -5 -5 -5 -5 -4 -4 -4 -4 -3 -3 -2 -2 -2 -1 -1 -1 --------- Run | Scr Mat Min Mat Min Exi Min Mat Gar Sto Gar Fac Gar Fac Gar Fac Was Fac Gar Fac Gar Fac Gar Fac Gar Res Qua Res Tes Sec Acc Com Ac0 Total 17346 | 130 263 340 406 631 463 118 214 316 330 232 92 386 765 296 320 318 479 283 104 504 118 356 344 485 450 893 193 619 1654 798 2172 2274 Wait 1972 | . 80 12 17 21 45 4 2 3 31 11 66 1 141 8 19 127 20 5 . 18 15 65 9 37 34 56 5 25 418 276 301 100 Move 11997 | 79 137 304 318 574 371 105 142 276 248 182 23 337 505 229 266 140 419 222 85 405 91 226 291 349 347 648 158 411 935 389 1435 1350 Hop . | . . . . . . . . . . . . . . . . . . . . . . . . . . . . . . . . . Pick Up 332 | 8 8 2 16 1 14 3 18 1 8 1 . 7 15 9 15 6 6 9 8 10 4 3 5 9 5 13 4 12 22 8 43 39 Fast Attach 111 | 6 1 1 6 . 1 . 1 . 1 . . . 5 . 3 1 3 . . . . . 2 . 4 5 4 9 10 2 15 31 Attach 257 | 1 1 1 . 1 7 . 3 1 6 5 2 2 10 6 6 4 1 3 1 6 3 3 2 9 4 16 2 14 21 14 44 58 Detach 113 | . 1 . 1 . 1 . . . 1 . . . 2 1 . 1 . . 1 . . . 1 . 6 10 2 13 13 8 28 23 Swap 317 | 1 11 6 10 8 9 2 16 8 5 7 . 3 13 9 4 4 7 7 2 4 1 14 8 9 5 22 2 24 24 14 20 38 Drop 308 | 3 10 5 10 . 14 . 10 1 8 3 . 1 15 5 6 13 9 4 5 9 3 3 5 4 2 21 5 19 16 3 44 52 Fire 1445 | 32 13 8 26 18 1 4 20 16 17 13 1 19 41 18 1 13 5 27 . 41 . 36 15 54 37 56 10 24 73 53 211 542 Melee 347 | . . . . . . . . . . . . . 18 7 . 9 9 . 2 . . . . . 4 45 . 68 122 27 23 13 Ram . | . . . . . . . . . . . . . . . . . . . . . . . . . . . . . . . . . Kick 27 | . . . . . . . . . . . . . . . . . . . . . . . . . . . . . . . . 27 Crush 31 | . 1 1 2 8 . . 2 . 1 . . . . . . . . . . 1 . 1 6 2 . 1 1 . . 4 . . Escape Stasis 82 | . . . . . . . . 10 . 10 . 16 . 4 . . . 6 . 10 . 4 . 12 2 . . . . . 8 . Rewire 1 | . . . . . . . . . . . . . . . . . . . . . . 1 . . . . . . . . . . Trap . | . . . . . . . . . . . . . . . . . . . . . . . . . . . . . . . . . Miscellaneous 6 | . . . . . . . . . 4 . . . . . . . . . . . 1 . . . . . . . . . . 1 Route ------- -11/Scrapyard -10/Materials (discovered 2 exits: Mat / [*Min]) -10/Mines (discovered 2 exits: *Mat x2) -9/Materials (discovered 3 exits: Mat / *Min x2) -9/Mines (discovered 3 exits: *Mat x2 / *Exi) -9/Exiles -8/Mines -8/Materials -8/Garrison (discovered 3 exits: *Sto x3) -8/Storage -8/Garrison (discovered 2 exits: *Fac x2) -7/Factory -7/Garrison (discovered 3 exits: *Fac x3) -6/Factory -6/Garrison -5/Factory -5/Waste -5/Factory -5/Garrison (discovered 2 exits: *Fac x2) -5/Factory -5/Garrison (discovered 3 exits: *Fac x3) -4/Factory -4/Garrison -4/Factory (discovered 3 exits: Upp x2 / Gar) -4/Garrison (discovered 2 exits: *Res x2) -3/Research (discovered 3 exits: Arm / *Qua x2) -3/Quarantine -2/Research -2/Testing (discovered 2 exits: *Acc / *Sec) -2/Section 7 -1/Access -1/Command (discovered 2 exits: [*Sur] / *Ac0) -1/Access_0 0b11 Command History --------- Turn | Location | Event 2 | -11/Scrapyard | Met Revision 17 8 | -11/Scrapyard | Discovered new exit (range 15) 205 | -11/Scrapyard | Entered Materials 252 | -10/Materials | Discovered new exit (range 11) 305 | -10/Materials | Build established: Mutant 464 | -10/Materials | Discovered new exit (range 15) 517 | -10/Materials | Entered Mines 521 | -10/Mines | Assisted by bots powering up and referring to "LRC-V3" 577 | -10/Mines | Discovered new exit (range 7) 721 | -10/Mines | Learned location of Zion (-6) 997 | -10/Mines | Learned location of 1 exit from Materials 1030 | -10/Mines | Discovered new exit (range 12) 1055 | -10/Mines | Entered Materials 1055 | -9/Materials | Accompanied by 2 allies 1055 | -9/Materials | Evolved 2 slots: Utility x2 1056 | -9/Materials | Identified exit to Materials 1060 | -9/Materials | Led the pair of lost Derelicts to an unsafe place 1418 | -9/Materials | Identified exit to Mines 1727 | -9/Materials | Entered Mines 1727 | -9/Mines | Accompanied by 1 ally 1784 | -9/Mines | Discovered exit to Materials (range 9) 1898 | -9/Mines | Received a Mining Laser from a helpful Derelict 2031 | -9/Mines | Learned 2 Materials zone layouts 2152 | -9/Mines | Discovered exit to Materials (range 14) 2553 | -9/Mines | Learned Materials stockpile data 2903 | -9/Mines | Deemed a non-threat by the Exiles lab entrance 2903 | -9/Mines | Discovered new exit (range 5) 2910 | -9/Mines | Entered Exiles 2966 | -9/Exiles | Met 8R-AWN 2992 | -9/Exiles | Met EX-HEX 3096 | -9/Exiles | Met EX-DEC 3312 | -9/Exiles | Met EX-BIN 3339 | -9/Exiles | Aligned with FarCom system 3341 | -9/Exiles | Given EX-Vault access code 3385 | -9/Exiles | Opened EX-Vault 3399 | -9/Exiles | Found AWS/Gauss 3404 | -9/Exiles | Found Cloak of Protection 3456 | -9/Exiles | Warned to stay clear of 0b10 Research branches 3463 | -9/Exiles | Build established: Hauler-Mutant 3471 | -9/Exiles | Exiles lab attacked by MAIN.C 3576 | -9/Exiles | Discovered new exit (range 10) 3632 | -9/Exiles | Attacked by the Exiles 3676 | -9/Exiles | Destroyed 8R-AWN 3711 | -9/Exiles | Entered Mines 3939 | -8/Mines | Discovered exit to Materials (range 7) 3953 | -8/Mines | Entered Materials 3953 | -8/Materials | Evolved 2 slots: Utility x1, Weapon x1 4353 | -8/Materials | First assault squad dispatched 4369 | -8/Materials | Identified exit to Garrison 4369 | -8/Materials | Entered Garrison 4487 | -8/Garrison | Triggered checkpoint 4560 | -8/Garrison | Discovered new exit (range 8) 4564 | -8/Garrison | Build established: Hauler-Bomber 4639 | -8/Garrison | Triggered checkpoint 4749 | -8/Garrison | Discovered new exit (range 8) 4866 | -8/Garrison | Triggered checkpoint 5023 | -8/Garrison | Discovered new exit (range 14) 5064 | -8/Garrison | Installed Relay Interface Framework 5073 | -8/Garrison | Entered Storage 5341 | -8/Storage | Met a pair of Derelict thieves 5461 | -8/Storage | Destroyed 9 combat bots 5531 | -8/Storage | Assisted by bots powering up and referring to "LRC-V3" 5697 | -8/Storage | Garrison activated, responded to threat 5718 | -8/Storage | Identified exit to Garrison 5718 | -8/Storage | Entered Garrison 5797 | -8/Garrison | Triggered checkpoint 5829 | -8/Garrison | Destroyed 9 combat bots 5830 | -8/Garrison | Triggered checkpoint 5833 | -8/Garrison | Triggered checkpoint 5960 | -8/Garrison | Discovered new exit (range 15) 6155 | -8/Garrison | Discovered new exit (range 8) 6192 | -8/Garrison | Expanded RIF knowledge: Structural Interface 6209 | -8/Garrison | Entered Factory 6209 | -7/Factory | Evolved 2 slots: Propulsion x1, Utility x1 6312 | -7/Factory | Identified exit to Garrison 6312 | -7/Factory | Entered Garrison 6388 | -7/Garrison | Triggered checkpoint 6452 | -7/Garrison | Discovered new exit (range 15) 6491 | -7/Garrison | Build established: Hauler-Mutant 6523 | -7/Garrison | Spotted B-75 Beast 6523 | -7/Garrison | Spotted B-75 Beast 6550 | -7/Garrison | Triggered checkpoint 6580 | -7/Garrison | Triggered checkpoint 6629 | -7/Garrison | Discovered new exit (range 13) 6820 | -7/Garrison | Discovered new exit (range 12) 6846 | -7/Garrison | Expanded RIF knowledge: Coupler Efficiency 6856 | -7/Garrison | Entered Factory 6856 | -6/Factory | Evolved 2 slots: Utility x2 6952 | -6/Factory | Crushed by falling debris 6952 | -6/Factory | System corruption reached 10% 6983 | -6/Factory | Lost 3 parts (1p2w) 7775 | -6/Factory | Fabricated Arm. Treads? 7906 | -6/Factory | First assault squad dispatched 7910 | -6/Factory | Identified exit to Garrison 7910 | -6/Factory | Entered Garrison 7987 | -6/Garrison | Triggered checkpoint 8037 | -6/Garrison | Destroyed 10 combat bots 8132 | -6/Garrison | Discovered new exit (range 12) 8157 | -6/Garrison | Identified exit to Factory 8170 | -6/Garrison | Expanded RIF knowledge: Alert ID Control 8230 | -6/Garrison | Triggered checkpoint 8260 | -6/Garrison | Garrison Relay disabled 8497 | -6/Garrison | Entered Factory 8497 | -5/Factory | Evolved 2 slots: Utility x2 8851 | -5/Factory | Hacking Suite fried by hacking feedback 8950 | -5/Factory | Sucked down chute 8950 | -5/Factory | Entered Waste 8977 | -5/Waste | Spotted C-40 Crusher 9006 | -5/Waste | Spotted C-40 Crusher 9012 | -5/Waste | Destroyed C-40 Crusher 9180 | -5/Waste | Spotted C-40 Crusher 9186 | -5/Waste | Spotted C-40 Crusher 9194 | -5/Waste | Warlord forces began an assault 9199 | -5/Waste | Allies destroyed C-40 Crusher 9209 | -5/Waste | Allies destroyed C-40 Crusher 9234 | -5/Waste | Allies destroyed C-40 Crusher 9239 | -5/Waste | Spotted C-40 Crusher 9242 | -5/Waste | Destroyed C-40 Crusher 9262 | -5/Waste | Found Damper Plating 9269 | -5/Waste | Found Damper Plating 9302 | -5/Waste | Allies destroyed C-40 Crusher 9348 | -5/Waste | Discovered new exit (range 14) 9370 | -5/Waste | Identified exit to Factory 9376 | -5/Waste | Entered Factory 9376 | -5/Factory | Accompanied by 12 allies 9638 | -5/Factory | Fabricated Adv. Weapon Cycler (x2) 9776 | -5/Factory | Local fabrication network quarantined 9976 | -5/Factory | First assault squad dispatched 10232 | -5/Factory | Identified exit to Garrison 10232 | -5/Factory | Entered Garrison 10322 | -5/Garrison | Garrison Relay disabled 10394 | -5/Garrison | Triggered checkpoint 10403 | -5/Garrison | Triggered checkpoint 10430 | -5/Garrison | Triggered checkpoint 10460 | -5/Garrison | Destroyed 16 combat bots 10529 | -5/Garrison | Discovered new exit (range 13) 10551 | -5/Garrison | Identified exit to Factory 10634 | -5/Garrison | Build established: Bothacker-Mutant 10671 | -5/Garrison | Triggered checkpoint 10719 | -5/Garrison | Discovered exit to Factory (range 8) 10746 | -5/Garrison | Expanded RIF knowledge: Patrol Navigation 10756 | -5/Garrison | Entered Factory 10951 | -5/Factory | Identified exit to Garrison 10951 | -5/Factory | Entered Garrison 11001 | -5/Garrison | Garrison Relay disabled 11066 | -5/Garrison | Triggered checkpoint 11066 | -5/Garrison | Triggered checkpoint 11323 | -5/Garrison | Discovered new exit (range 14) 11351 | -5/Garrison | Identified exit to Factory 11517 | -5/Garrison | Triggered checkpoint 11656 | -5/Garrison | Discovered exit to Factory (range 10) 11746 | -5/Garrison | Garrison Relay disabled 11879 | -5/Garrison | Discovered exit to Factory (range 10) 11911 | -5/Garrison | Expanded RIF knowledge: Coupler Efficiency 11919 | -5/Garrison | Entered Factory 11919 | -4/Factory | Evolved 2 slots: Propulsion x1, Utility x1 11979 | -4/Factory | Found Quantum Capacitor 12091 | -4/Factory | Identified exit to Garrison 12115 | -4/Factory | Entered Garrison 12430 | -4/Garrison | Triggered checkpoint 12432 | -4/Garrison | Triggered checkpoint 12500 | -4/Garrison | Build established: Botlord-Mutant 12560 | -4/Garrison | Triggered checkpoint 12638 | -4/Garrison | Discovered new exit (range 15) 12669 | -4/Garrison | Identified exit to Factory 12682 | -4/Garrison | Expanded RIF knowledge: Autoassimilate 12690 | -4/Garrison | Entered Factory 13046 | -4/Factory | Identified exit to Upper Caves 13303 | -4/Factory | Identified exit to Garrison 13303 | -4/Factory | Entered Garrison 13313 | -4/Garrison | Expanded RIF knowledge: Coupler Efficiency 13352 | -4/Garrison | Triggered checkpoint 13429 | -4/Garrison | Garrison Relay disabled 13522 | -4/Garrison | Triggered checkpoint 13522 | -4/Garrison | Triggered checkpoint 13683 | -4/Garrison | Lost 3 parts (1u2w) 13757 | -4/Garrison | Discovered new exit (range 8) 13900 | -4/Garrison | Discovered new exit (range 8) 13954 | -4/Garrison | Garrison Relay disabled 14158 | -4/Garrison | Identified exit to Research 14162 | -4/Garrison | Entered Research 14162 | -3/Research | Evolved 2 slots: Utility x2 14205 | -3/Research | Found Prototype Device 14205 | -3/Research | Identified Exp. Thermal Defense Suite 14302 | -3/Research | Identified exit to Armory 14302 | -3/Research | Identified exit to Quarantine 14914 | -3/Research | Entered Quarantine 14930 | -3/Quarantine | Found Alien Artifact 14932 | -3/Quarantine | Identified Matter Drive 15042 | -3/Quarantine | Found Alien Slashing Weapon 15042 | -3/Quarantine | Identified Sigix Broadsword 15083 | -3/Quarantine | Found Alien Impact Weapon 15273 | -3/Quarantine | Found Phase Armor 15678 | -3/Quarantine | Found Subatomic Replicator 16168 | -3/Quarantine | Identified Core Stripper 16174 | -3/Quarantine | Destroyed 8 combat bots 16233 | -3/Quarantine | Found Stasis Generator 16253 | -3/Quarantine | System corruption reached 10% 16333 | -3/Quarantine | Found Phase Redirector 16451 | -3/Quarantine | Discovered new exit (range 4) 16458 | -3/Quarantine | Identified exit to Research 16460 | -3/Quarantine | Entered Research 16460 | -2/Research | Accompanied by 1 ally 16460 | -2/Research | Evolved 2 slots: Utility x1, Weapon x1 16617 | -2/Research | Found Molecular Scythe 16625 | -2/Research | Found Imp. Particle Accelerator 16724 | -2/Research | Discovered new exit (range 15) 16755 | -2/Research | Identified exit to Testing 16759 | -2/Research | Entered Testing 16759 | -2/Testing | Accompanied by 1 ally 16778 | -2/Testing | Found Prototype Device 16813 | -2/Testing | Spotted PD-1QSEK3AKOE 16815 | -2/Testing | Identified Thermal Barrier 16821 | -2/Testing | Destroyed PD-1QSEK3AKOE 16833 | -2/Testing | Found Hellfire Missile Launcher 17164 | -2/Testing | Found Hyp. Multirail 17400 | -2/Testing | Discovered new exit (range 9) 17428 | -2/Testing | Found AEGIS Remote Shield 17611 | -2/Testing | Spotted Fortress 17618 | -2/Testing | Destroyed Fortress 17631 | -2/Testing | Found Prototype Device 17631 | -2/Testing | Identified Exp. Force Field 17645 | -2/Testing | Found Prototype Protection 17645 | -2/Testing | Identified Centrium Heavy Armor Plating 17660 | -2/Testing | Found Unknown Device 17660 | -2/Testing | Identified Antimissile System 17663 | -2/Testing | Found Prototype Device 17663 | -2/Testing | Identified EM Dispersion Field 17669 | -2/Testing | Found Prototype Reactor 17782 | -2/Testing | Discovered new exit (range 6) 17788 | -2/Testing | Identified exit to Section 7 17792 | -2/Testing | Entered Section 7 17995 | -2/Section 7 | Found Alien Artifact 18068 | -2/Section 7 | Found Alien Artifact 18120 | -2/Section 7 | Found Core Reset Matrix 18242 | -2/Section 7 | Found Prototype Processor 18319 | -2/Section 7 | Spotted S7 Guard 18339 | -2/Section 7 | Destroyed S7 Guard 18349 | -2/Section 7 | Found Core Regenerator 18367 | -2/Section 7 | Found Hvy. Regenerative Plating 18476 | -2/Section 7 | Identified Integrated Dissipator (x2) 18476 | -2/Section 7 | Installed Integrated Dissipator, increased core heat dissipation (+2%) 18507 | -2/Section 7 | Identified Exp. Core Analyzer 18516 | -2/Section 7 | Found Integrated Reactor 18516 | -2/Section 7 | Installed Integrated Reactor, increased core energy generation (+2%) 18564 | -2/Section 7 | Spotted S7 Guard 18580 | -2/Section 7 | Found Integrated Heat Negator 18580 | -2/Section 7 | Installed Integrated Heat Negator, increased core heat dissipation (+2%) 18772 | -2/Section 7 | Build established: Bothacker-Mutant 18991 | -2/Section 7 | Discovered new exit (range 3) 18992 | -2/Section 7 | Identified exit to Access 19214 | -2/Section 7 | Used Subatomic Replicator to replicate Integrated Singularity Reactor 19215 | -2/Section 7 | Found Integrated Singularity Reactor 19215 | -2/Section 7 | Installed Integrated Singularity Reactor, increased core energy generation (+2%) 19218 | -2/Section 7 | Installed Integrated Singularity Reactor, increased core energy generation (+2%) 19252 | -2/Section 7 | Spotted Executioner 19252 | -2/Section 7 | Spotted Executioner 19273 | -2/Section 7 | Destroyed Executioner 19276 | -2/Section 7 | Destroyed Executioner 19289 | -2/Section 7 | Found Prototype Processor 19322 | -2/Section 7 | Found Terrabomb 19325 | -2/Section 7 | Found Terrabomb 19327 | -2/Section 7 | Found Terrabomb 19343 | -2/Section 7 | Installed Integrated Dissipator, increased core heat dissipation (+2%) 19347 | -2/Section 7 | Found Transdimensional Reconstructor 19352 | -2/Section 7 | Found Transdimensional Reconstructor 19354 | -2/Section 7 | Found Transdimensional Reconstructor 19497 | -2/Section 7 | Found Sigix Quantum Sheargun 19501 | -2/Section 7 | Found Sigix Quantum Sheargun 19503 | -2/Section 7 | Found Sigix Quantum Sheargun 19820 | -2/Section 7 | Found LRC Insulator 19820 | -2/Section 7 | Installed LRC Insulator, gained EM resistance (25) 19823 | -2/Section 7 | Found LRC Storage 19823 | -2/Section 7 | Installed LRC Storage, increased inventory capacity (+2) 19946 | -2/Section 7 | Found Core Expander 19946 | -2/Section 7 | Installed Core Expander, added new Utility slot 20103 | -2/Section 7 | Warped through subspace 20300 | -2/Section 7 | Entered Access 20300 | -1/Access | Evolved 2 slots: Power x1, Weapon x1 20306 | -1/Access | Used Terrabomb 20417 | -1/Access | Used Terrabomb 20583 | -1/Access | Found Quantum Capacitor 20601 | -1/Access | Build established: Bothacker-Assassin 20782 | -1/Access | Identified exit to Command 20863 | -1/Access | Garrison activated, responded to threat 20949 | -1/Access | Spotted B-99 Colossus 20956 | -1/Access | Spotted B-99 Colossus 20960 | -1/Access | Autoassimilated Colossus 10a with RIF 20960 | -1/Access | Assimilated Colossus 10b with formatsys_high 21029 | -1/Access | Garrison activated, responded to threat 21332 | -1/Access | Build established: Botlord-Assassin 21436 | -1/Access | Entered Command 21491 | -1/Command | Spotted B-99 Colossus 21493 | -1/Command | Destroyed 9 combat bots 21520 | -1/Command | Assimilated Colossus 10c with formatsys_high 21589 | -1/Command | Spotted M Guard 21589 | -1/Command | Spotted M Guard 21589 | -1/Command | Spotted Combat Programmer 21591 | -1/Command | Spotted Combat Programmer 21618 | -1/Command | Destroyed M Guard 21628 | -1/Command | Destroyed M Guard 21645 | -1/Command | Destroyed Combat Programmer 21669 | -1/Command | Destroyed Combat Programmer 21669 | -1/Command | Destroyed all MAIN.C guards 21738 | -1/Command | Build established: Botlord-Mutant 21740 | -1/Command | Found Prototype Ballistic Gun 21849 | -1/Command | Found Prototype Energy Cannon 21849 | -1/Command | Identified Cld. Nova Cannon 21856 | -1/Command | Found Prototype Reactor 21856 | -1/Command | Identified Zero-point Reactor 21875 | -1/Command | Found AEGIS Remote Shield 21882 | -1/Command | Found AEGIS Remote Shield 21886 | -1/Command | Found Zero-point Reactor 21967 | -1/Command | First assault squad dispatched 22141 | -1/Command | Met MAIN.C 22160 | -1/Command | 0b10 Conduit disabled 22189 | -1/Command | Destroyed MAIN.C Shell 22190 | -1/Command | MAIN.C activated Command garrisons 22266 | -1/Command | Destroyed MAIN.C 22278 | -1/Command | Found Exp. Target Analyzer 22286 | -1/Command | Found Prototype Protection 22289 | -1/Command | Found Prototype Device 22289 | -1/Command | Identified Beam Splitter 22300 | -1/Command | Found Zero-point Reactor 22305 | -1/Command | Found Prototype Protection 22309 | -1/Command | Found Prototype Ballistic Cannon 22354 | -1/Command | Build established: Scavenger-Mutant 22527 | -1/Command | Identified Omega Cannon 22762 | -1/Command | Discovered new exit (range 13) 23422 | -1/Command | Identified Multirail 23444 | -1/Command | Build established: Hauler-Mutant 23794 | -1/Command | Identified Exp. Powered Armor (x2) 23807 | -1/Command | Identified Exp. Targeting Computer 24420 | -1/Command | Found Multirail 24425 | -1/Command | Found Multirail 24534 | -1/Command | Found Exp. Core Analyzer 24535 | -1/Command | Warped through subspace to slip node 24535 | -1/Command | Discovered new exit (range 5) 24554 | -1/Command | Entered Access_0 24556 | -1/Access_0 | Met Architect 24559 | -1/Access_0 | Destroyed A8 24573 | -1/Access_0 | Architect warped through subspace 24596 | -1/Access_0 | Found Prototype Protection 24597 | -1/Access_0 | Identified Centrium Linked Plating 24664 | -1/Access_0 | Architect warped through subspace 24672 | -1/Access_0 | Found Prototype Device 24674 | -1/Access_0 | Found Exp. Targeting Computer 24679 | -1/Access_0 | Found Prototype Device 24679 | -1/Access_0 | Identified Exp. Phase Shifter 24692 | -1/Access_0 | Found Prototype Device 24714 | -1/Access_0 | Architect warped through subspace 24714 | -1/Access_0 | Used Core Regenerator, restored core integrity (+333) 24775 | -1/Access_0 | Architect warped through subspace 24806 | -1/Access_0 | Identified Desublimator 24807 | -1/Access_0 | Identified Exp. Weapon Cycler 24828 | -1/Access_0 | Architect warped through subspace 24891 | -1/Access_0 | Architect warped through subspace 24946 | -1/Access_0 | Architect warped through subspace 24999 | -1/Access_0 | Architect warped through subspace 25049 | -1/Access_0 | Architect warped through subspace 25094 | -1/Access_0 | Architect warped through subspace 25156 | -1/Access_0 | Architect warped through subspace 25166 | -1/Access_0 | Found Exp. Powered Armor 25174 | -1/Access_0 | Found Exp. Powered Armor 25205 | -1/Access_0 | Architect warped through subspace 25215 | -1/Access_0 | A6 warped into view 25248 | -1/Access_0 | Architect warped through subspace 25273 | -1/Access_0 | Destroyed A6 25305 | -1/Access_0 | Architect warped through subspace 25323 | -1/Access_0 | Lost 4 parts (2p1n1u) 25328 | -1/Access_0 | Destroyed 7 combat bots 25350 | -1/Access_0 | Architect warped through subspace 25353 | -1/Access_0 | Found Alien Energy Gun 25353 | -1/Access_0 | Identified Modified Quantum Sheargun 25389 | -1/Access_0 | Architect warped through subspace 25428 | -1/Access_0 | Architect warped through subspace 25431 | -1/Access_0 | Found Centrium Linked Plating 25436 | -1/Access_0 | Found Modified Quantum Sheargun 25458 | -1/Access_0 | Subspace Access Node disabled 25465 | -1/Access_0 | Architect warped through subspace 25474 | -1/Access_0 | Found Centrium Linked Plating 25524 | -1/Access_0 | Architect warped through subspace 25532 | -1/Access_0 | Found Modified Quantum Sheargun 25546 | -1/Access_0 | Architect warped through subspace 25558 | -1/Access_0 | Found Exp. Phase Shifter 25562 | -1/Access_0 | Found Centrium Linked Plating 25582 | -1/Access_0 | Architect warped through subspace 25586 | -1/Access_0 | Found Exp. Phase Shifter 25588 | -1/Access_0 | Found Exp. Weapon Cycler 25609 | -1/Access_0 | Architect warped through subspace 25647 | -1/Access_0 | Architect warped through subspace 25686 | -1/Access_0 | Architect warped through subspace 25688 | -1/Access_0 | Found Modified Quantum Sheargun 25692 | -1/Access_0 | Found Modified Quantum Sheargun 25727 | -1/Access_0 | Architect warped through subspace 25779 | -1/Access_0 | Architect warped through subspace 25786 | -1/Access_0 | Found Centrium Linked Plating 25819 | -1/Access_0 | Subspace Access Node disabled 25835 | -1/Access_0 | Architect warped through subspace 25894 | -1/Access_0 | Architect warped through subspace 25909 | -1/Access_0 | Found Modified Quantum Sheargun 25931 | -1/Access_0 | A5 warped into view 25943 | -1/Access_0 | Build established: Scavenger-Gunner 25949 | -1/Access_0 | Architect warped through subspace 25958 | -1/Access_0 | Destroyed A5 25964 | -1/Access_0 | Found Centrium Linked Plating 26005 | -1/Access_0 | Architect warped through subspace 26041 | -1/Access_0 | Architect warped through subspace 26073 | -1/Access_0 | Architect warped through subspace 26108 | -1/Access_0 | Architect warped through subspace 26132 | -1/Access_0 | Architect warped through subspace 26156 | -1/Access_0 | Architect warped through subspace 26177 | -1/Access_0 | Architect warped through subspace 26198 | -1/Access_0 | Architect warped through subspace 26212 | -1/Access_0 | Architect warped through subspace 26220 | -1/Access_0 | Lost 3 parts (2u1w) 26229 | -1/Access_0 | Architect warped through subspace 26239 | -1/Access_0 | Architect warped through subspace 26240 | -1/Access_0 | Found Exp. Phase Shifter 26254 | -1/Access_0 | Architect warped through subspace 26260 | -1/Access_0 | Subspace Access Node disabled 26268 | -1/Access_0 | Architect warped through subspace 26288 | -1/Access_0 | Architect warped through subspace 26289 | -1/Access_0 | Subspace Access Node disabled 26449 | -1/Access_0 | Core integrity fell below 50% 26593 | -1/Access_0 | Found Centrium Linked Plating 26717 | -1/Access_0 | A4 warped into view 26758 | -1/Access_0 | Destroyed A4 26764 | -1/Access_0 | Found Exp. Powered Armor 26808 | -1/Access_0 | Build established: Scavenger-Tank 26878 | -1/Access_0 | Destroyed A2 26891 | -1/Access_0 | Extracted Singularity Gate Test 138-C access codes from A2's data core 26901 | -1/Access_0 | Found Exp. Phase Shifter 26907 | -1/Access_0 | Found Hvy. Regenerative Plating 27089 | -1/Access_0 | Singularity Gate disabled 27172 | -1/Access_0 | Destroyed Architect 27175 | -1/Access_0 | Extracted unknown sensor trigger ID from Architect's data core 27178 | -1/Access_0 | Found Alien Artifact 27663 | -1/Access_0 | A3 warped into view 27691 | -1/Access_0 | Destroyed A3 27696 | -1/Access_0 | Identified Hpw. Transdimensional Reconstructor 27696 | -1/Access_0 | Warped through subspace to slip node 27696 | -1/Access_0 | Discovered new exit (range 8) 27707 | *** | Establishing 0b11! Last Messages --------------- 27685_ System corrupted: Modified Quantum Sheargun targeting data glitched. 27685_ Quantum Shear penetrates A3. 27685_ A3 suffers critical hit. 27685_ Destroyed Exp. Cooling System. 27687_ Destroyed Lgt. Quantum Reactor. 27687_ Quantum Shear penetrates Wall. 27687_ Quantum Shear penetrates Reinforced Shell. 27689_ Quantum Shear penetrates Wall. 27689_ Quantum Shear penetrates A3. 27689_ Destroyed Adv. Phase Shifter. 27691_ Quantum Shear penetrates A3. 27691_ A3 suffers critical hit. 27691_ Destroyed Cld. Antigrav System. 27691_ Quantum Shear penetrates A3. 27691_ A3: "How even..." 27691_ A3 destroyed. 27696_ Identified Hpw. Transdimensional Reconstructor. 27696_ Warped through subspace, drawn to slip node. 27696_ EXIT=FOUND Map ----- +----------------------------------------------------+ | | | | | | | | | | | | | | | | | | | | | | | | | | | | | | | | | ?????????????????????????????????????????????????? | | ?????????????????????????????????????????????????? | | ?????????????????????????????????????????????????? | | ?????????????????????????????????????????????????? | | ?????????????????????????????????????????????????? | | ?????????????????????????????????????????????????? | | ????????????????????????###??????????????????????? | | ???????????????????????## ##?????????????????????? | | ???????????????????????# #?????????????????????? | | ???????????????????????# @ #?????????????????????? | | ??????????????????????## #?????????????????????? | | ??????????????????????# #?????????????????????? | | ??????????????????????# ##?????????????????????? | | ??????????????????????## #?????????????????????? | | ??????????????????????# #?????????????????????? | | ??????????????????????# ##?????????????????????? | | ??????????????????????# < #?????????????????????? | | ??????????????????????# ##?????????????????????? | | ??????????????????????## #??????????????????????? | | ???????????????????????####??????????????????????? | | ?????????????????????????????????????????????????? | | ?????????????????????????????????????????????????? | | ?????????????????????????????????????????????????? | | ?????????????????????????????????????????????????? | | ?????????????????????????????????????????????????? | | ?????????????????????????????????????????????????? | | ?????????????????????????????????????????????????? | | ?????????????????????????????????????????????????? | | ?????????????????????????????????????????????????? | | ?????????????????????????????????????????????????? | | ?????????????????????????????????????????????????? | | ?????????????????????????????????????????????????? | | ?????????????????????????????????????????????????? | | ?????????????????????????????????????????????????? | +----------------------------------------------------+ Best States ------------- Heat Dissipation 132 Coolant Potential 120 Energy Generation 111 Energy Capacity 1600 Matter Stores 300 Matter Capacity 450 Sight Range 23 Robot Scan Range 20 Terrain Scan Range 16 Terrain Scan Density 60 Jamming Range 16 Additional Mass Support 12 Armor Coverage 3225 Resistance: KI 25 Resistance: TH 75 Resistance: EM 100 Utility Shielding 66 Weapon Shielding 90 Point Defense Rating 240 Weapon Cycling 30 Phase Shifting 20 Evasion (%) 60 Targeting Accuracy 24 Target Analysis 12 Core Analysis 15 Armor Integrity Analysis 66 Recoil Reduction 4 Particle Charging 40 Offensive Hacking 10 Defensive Hacking 12 Item Schematics ----------------- Adv. Weapon Cycler | -8/Materials | Scanalyzed Arm. Treads | -8/Materials | Scanalyzed Imp. Weapon Shielding | -5/Factory | Scanalyzed Nanoactuators | -4/Factory | Hacked Robot Schematics ------------------ None Fabricated ------------ Arm. Treads | x2 | -6/Factory Adv. Weapon Cycler | x2 | -5/Factory Alien Tech Used ----------------- Matter Drive Sigix Broadsword Phase Armor Phase Redirector Core Stripper Integrated Dissipator Integrated Reactor Integrated Heat Negator Subatomic Replicator Integrated Singularity Reactor LRC Insulator LRC Storage Core Expander Transdimensional Reconstructor Terrabomb Sigix Quantum Sheargun Stasis Generator Core Regenerator Modified Quantum Sheargun High-powered Transdimensional Reconstructor Achievements -------------- None Challenges ------------ None Game ------ Seed FissionModifiedMace Manual? 0 Play Time 04:46:24 Cumulative 1519.1 hours Start 2020.08.24 @ 16:18:22 End 2020.08.24 @ 22:20:17 Sessions 5 Manual Loads 0 Difficulty Rogue Special Mode None Game No. 2433 Rogue 2426 Adventurer 0 Explorer 7 Win Type 1 Total 127 Types 39/10/55/3/3/3/14 Lore% 99 Gallery% 99 Achievement% 100 Wizard Run 0 Options --------- ASCII 0 Keyboard 1 Movement Numpad Keybinds 1 Fullscreen 1 Font 18/SmallcapsGlow Map View 76x50 Tactical HUD 1 Map Filters NONE Filters NONE Steam 1 RUN: 95781737-ab13-4e58-9481-3bf87e5a7cd8